{"text_format":"1","workbook":"xlsx","n_sheets":13,"sheets":["説明(Instruction)","基本情報(Data)","論文情報(Papers)","チェックシート(CheckSheet)","Form1学位申請書","Form2論文目録","Form3学位論文要旨","Form4履歴書","Form5承諾書","学位論文題目届 (Title of Dissertation)","研究題目変更願(request for change)","機関リポジトリ登録申請書(Repository)","英文氏名国名届(Name and nationality)"],"not_rendered":{"charts":0,"images":0,"macros":1,"external_links":0,"defined_names":13,"comments":0,"pivot_tables":0},"unopened":[],"bounds":{"document_bytes":16777216,"sheet_cells":100000,"rows_first":2000,"rows_last":500,"rows_between":2000,"halvings":0,"cell_chars":16384,"cell_head_chars":4096},"cells_cut":0,"cells_raw":0,"read":"whole","date_system":"1900"}

{"sheet":"説明(Instruction)","index":0,"n_rows":43,"n_cols":7,"rows_kept":43,"cut":false,"hidden":false,"merged":[[14,1,14,8],[7,0,7,8],[8,0,8,8],[9,0,9,8],[6,0,6,8],[13,0,13,8],[0,6,0,8],[1,6,1,8],[3,0,3,8],[4,0,4,8],[11,1,11,3],[35,0,35,1],[16,1,16,8],[17,1,17,8],[18,1,18,8],[19,1,19,8],[20,2,20,8],[21,2,21,8],[22,2,22,8],[29,2,29,8],[30,2,30,8],[31,2,31,8],[32,2,32,8],[33,2,33,8],[15,0,15,8],[24,2,24,8],[42,1,42,8],[36,1,36,8],[37,1,37,8],[38,1,38,8],[39,1,39,8],[40,1,40,8],[41,1,41,8],[35,2,35,8],[23,1,23,8],[25,1,25,8],[26,2,26,8],[27,2,27,8],[28,2,28,8],[34,2,34,8]]}
[null,null,null,null,null,null,"課程博士"]
[null,null,null,null,null,null,"Course Doctorate"]
[]
["学位申請の仕方"]
["How to make Doctoral Application"]
[]
["・マクロ付きEXCELファイル(6_shinseisho-macro.xlsm)は岐阜大学大学院連合農学研究科における学位申請用に作られています．ただし，学位論文題目および基礎となる論文題目に斜体や上付・下付文字等が含まれていない場合は，マクロ不使用のEXCELファイル(6_shinseisho-non-macro.xlsx)をご利用ください．\n・各シートは保護されていますが，パスワードはかかっていません．必要に応じて保護を解除してお使い下さい．このファイルにはシートが13枚あります．\n・はじめに「基本情報」「論文情報」を記入し，その後，他のシートを適宜修正してください．ただし，このファイルでは，氏名や題目が各シートで同じになるようにしていますので，それらは変更しないようにしてください．また，誤字や脱字にご注意ください．\n・このファイルではマクロ(VBA)が使われています．マクロを有効にしてご使用下さい．（エクスプローラーの「プロパティ」→「全般タブ」→「セキュリティ」→「許可する」）\n"]
["・This EXCEL file (6_shinseisho-macro.xlsm) is designed for Doctoral applications at the UGSAS, Gifu University. However, if the title of your dissertation and/or academic paper does not contain any italicized, superscripted or subscripted text, please use the EXCEL file without macro (6_shinseisho-non-macro.xlsx) instead.\n・Each sheet is protected without password. Please unprotect the sheet if necessary. There are 13 sheets in this file.\n・Fill in the \"Data\" and \"Papers\" sheets first, and then modify the other sheets as necessary. However, since the name and title are the same on each sheet in this file, please do not change them. Please be careful to avoid typographical errors and omissions.\n・This file uses Macro (VBA). So, please enable macros. (in case of Ms-Windows, [Explorer]->[Properties]->[General]->[Security]->[Allow])"]
["5月27日（月）までに\n・学位申請する見込みの方は，「学位論文題目届，（題目に変更がある場合）研究題目変更願，戸籍抄本（日本人），住民票（外国人），機関リポジトリ登録申請書，Form4履歴書，英文の氏名及び国名届（外国人のみ）」を連農係に提出してください．\n6月28日（金）17:00までに\n・学位申請する方は，「チェックシート，Form1学位申請書，Form2論文目録（確認のための書類），Form3学位論文要旨，Form5承諾書，学位論文，基礎となる学術論文，既発表論文」を連農係に提出してください．"]
["By May 27 (Mon.)\nIf you are a prospective applicant for a degree, please submit the \"Notification of Title of Dissertation\", \"Request for Change of Research Title (if necessary), \"Extract of Family Register (for Japanese), or Resident Record (for non-Japanese)\", \"Institutional Repository Registration Application Form\", \"Form 4 CV\", and \"English spelling of applicant’s name and nationality (foreign applicants only)\" to the UGSAS office.\nBy 17:00, June 28 (Fri.)\nIf you are applying for a degree, please submit \"List of documents required for degree application\", \"Form 1 Doctoral Application Form\", \"Form 2 List of Publication\", \"Form 3 Dissertation Summary (Japanese or English)\", \"Form 5 Letter of Consent\", \"Dissertation\", \"Academic Papers that Form the Basis of Dissertation\", and \"Previously Presented Academic Papers\" to the UGSAS office.\t"]
[]
[null,"課程博士　Course Doctorate"]
[]
["学位申請関係書類の提出上の注意事項（学位申請者用）\nItems to note when submitting documents related to a doctoral application\n(For doctoral applicants)"]
[]
["岐阜大学大学院連合農学研究科\nThe United Graduate School of Agricultural Science, Gifu University\n"]
[]
["◎","　学位申請をするときは，申請前に次のことに注意し関係書類を作成の上，所属する構成大学の連合農学研究科代議員会委員の確認を受けた後，岐阜大学応用生物科学部連合大学院事務室連合農学係（以下「連合農学係」という。）へ提出すること。\nWhen making a doctoral application, please note the following. In preparing the related documents, first obtain the confirmation of a member of the United Graduate School of Agricultural Science Board of Representatives. After obtaining this confirmation, submit your application to the United Agricultural Science Section of the Office of the United Graduate School of Agricultural Science, Gifu University (hereinafter, “UGSAS Office”).\n"]
[1,"学位申請書（Ａ４サイズ，指定用紙）\nDOCTORAL APPLICATION FORM (A4 size paper, designated form)\n学位申請書は，別紙様式第１号の指定用紙に自筆の上，主指導教員の確認を受け，その他の箇所には記入しないこと。\nThe DOCTORAL APPLICATION FORM is attached Form No. 1. After signing to the document, obtain the confirmation signature of your Primary Academic Supervisor. Do not fill in any other places."]
[2,"　論文目録（Ａ４サイズ）　LIST OF PUBLICATIONS (A4 size paper)\n"]
[null,"（１）\t","論文目録は，別紙様式第２号に従い作成すること。\nFor the LIST OF PUBLICATIONS, follow attached Form No. 2."]
[null,"（２）\t","基礎となる学術論文は，発表年代順に列記すること。\nなお，基礎となる学術論文以外に既発表学術論文がある場合には，基礎となる学術論文の次に別項として発表年代順に列記すること。\nThe academic papers that form the basis of dissertation should be listed in chronological order of publication.\nIf you have previously presented academic papers other than those you will use to support your dissertation, list them in chronological order of publication as a separate section after the academic papers that form the basis of dissertation."]
[null,"（３）\t","基礎となる学術論文が学術雑誌等に未掲載の場合、論文が受理又されたことが分かる書類（タイトルと「受理」の部分に下線をつけること）　を必ず添付すること。　\n基礎となる学術論文が投稿中の場合、論文を投稿したとわかる書類を必ず添付すること。\nIf academic papers that form the basis of dissertation have not yet been published in a journal or other publication, be sure to attach the documents indicating that the papers have been accepted (underline the title and the \"accepted\" part). \nIf academic papers that form the Basis of the Dissertation have not yet been accepted,  be sure to attach a document indicating that the papers have been submitted."]
[3,"学位論文要旨（Ａ４サイズ）　DISSERTATION SUMMARY (A4 size paper)\n"]
[null,null,"学位論文要旨は，別紙様式第３号に従い，日本語［2000字程度］又は英語［1200語程度］で作成すること。\nPrepare your DISSERTATION SUMMARY, following attached Form No. 3. The length should be about 2000 characters for Japanese or 1200 words for English."]
[4,"履歴書（Ａ４サイズ）　CURRICULUM VITAE (A4 size paper)"]
[null,"（１）\t","別紙様式第４号に従い作成すること。\nPrepare CURRICULUM VITAE in accordance with attached Form No. 4."]
[null,"（２）\t","本籍は都道府県名（外国籍の者は国名（省略しないで正式のものを記入すること。））のみを記入すること。\n For your permanent domicile, write only the name of the prefecture (applicants with foreign nationality should write the name of their country (do not abbreviate, write the full official name))."]
[null,"（３）\t","学歴欄は高等学校卒業から記入すること。なお，中途退学であっても省略しないで記入すること。\nIn the Academic background section, list all academic endeavors since graduating from high school. Do not omit anything, even if you left a school before completion."]
[null,"（４）\t","大学の別科，専攻科については学歴欄に，研究生，副手，聴講生等は職歴欄に記入すること。\nList other university courses or advanced courses in the Academic background section, and research student, assistant, or auditing student in the Occupational history section."]
[null,"（５）\t","学位，称号のほか，獣医師，医師，歯科医師，薬剤師，看護婦，教員等の資格がある場合は，学歴欄に記入すること。この場合授与機関及び登録番号を（　）書きで付記すること。\nIn addition to other degrees and titles, list any qualifications you hold, such as veterinarian, medical doctor, dentist, pharmacist, nurse, teacher, etc. in the Academic background section. In such cases, write the conferring institution and registration number in parentheses."]
[null,"（６）\t","職歴は各職歴について，いつからいつまでの職歴か期間が明確になるように記入すること。なお，現職については必ず「現在に至る。」と明記すること。\nFor Occupational history, write the beginning and ending dates for each occupation, so that the period of employment is clear. For current employment, be sure to write “until present.”"]
[null,"（７）\t","自営業，無職等についても省略しないで職歴欄に記入すること。\nDo not omit periods of self-employment or unemployment. Include all periods in the Occupational history section."]
[null,"（８）\t","学会及び社会における活動等の欄には本人の専攻，研究分野等に関連した事項についてのみ記入すること。\nIn the column on activities in academic societies or the community, list only activities associated with your specialty or field of study."]
[null,"（９）\t","所属学会名は正確に記入すること。また，所属の期間も付記すること。\nAccurately write the names of any academic societies to which you belong or have belonged. Also write the period of your membership in each."]
["（１０）\t",null,"賞罰の欄には，勲章，褒賞等の受賞及び研究成果による学会での受賞等について記入すること。\nIn the Special achievements section, list any honors or decorations you have received, as well as awards from academic societies for research results."]
[5,"承諾書（Ａ４サイズ，指定用紙）　LETTER OF CONSENT (A4 size paper, designated form)\n基礎となる学術論文が共著である場合は，別紙様式第５号の指定用紙を用い，共著者全員各人それぞれの承諾書を提出すること。\nIf any of the academic papers that form the basis for your dissertation were co-written, use the specified form, attached Form No. 5. Submit individual letters of consent from each of your co-authors."]
[6,"機関リポジトリ登録申請書 　Institutional Repository Registration Application Form\n博士学位論文を岐阜大学機関リポジトリに登録し、インターネット公表をします。やむを得ない理由で、博士学位論文の全文をインターネット公表できない場合は、要約を岐阜大学機関リポジトリに登録し、公開します。\nThe doctoral dissertation will be registered on the Gifu University Institutional Repository and it will be published on the internet. If it is difficult to publish whole doctoral dissertation on the internet due to unavoidable circumstances, the summary of dissertation will be registered on the Gifu University Institutional Repository."]
[7,"審査用学位論文  Dissertation for use in examination\n学位論文は，仮綴じのもの３部（審査委員の人数によって増部することになるので，主指導教員の指示を受けること。）及び両面コピーしたもの１部とPDF(PDF/A) （連合農学係へ提出用）を作成すること。表紙（学位論文提出及び審査の手引（以下「手引」という。）の２６頁，２７頁を参照のこと。）も添付すること。学位論文を提出した後に修正をした場合は、PDF(PDF/A)を再提出すること。再提出しない場合は、先に提出した学位論文PDF(PDF/A)が岐阜大学機関リポジトリに登録されます。\nSubmit three copies of your temporarily bound* dissertation (more copies may be required depending on the number of people on your review committee; follow the instructions of your Primary Academic Supervisor). Also prepare one double-sided copy and its PDF (PDF/A) (for submission to the UGSAS Office). A cover page should also be attached (refer to pages 13, 14 in Handbook for Doctoral Dissertation (hereinafter, “Manual”)).\n    In case you make corrections or revisions after submitting, be sure to submit the new version. If not, the old version will be registered on the Gifu University Institutional Repository.\n\n※仮綴じとは，ダブルクリップ等で留めた物（ファイルを付ける必要はありません）\n*”Temporarily bound” means fastened with a double paperclip, etc. (a folder is not required)\n\n"]
[8,"審査用学位論文の基礎となる学術論文\nAcademic Papers that Form the Basis of Dissertation, for use in examination\n学位論文の基礎となる学術論文は，１冊にまとめて仮綴じし，表紙に学位論文の基礎となる学術論文と明記の上，氏名を記入したもの（手引の２８頁を参照のこと。）を３冊（審査委員の人数によって増部することになるので，主指導教員の指示を受けること。）及び１部（連合農学係へ提出用）を作成すること。\nAcademic papers that form the basis of dissertation should be temporarily bound* together. On the cover page, clearly indicate that these are academic papers that form the basis of dissertation, and above that write your name (refer to page 15 of the Manual).\nSubmit three copies of your temporarily bound* academic papers that form the basis of your dissertation (more copies may be required depending on the number of people on your review committee; follow the instructions of your Primary Academic Supervisor). Also prepare one copy for UGSAS office.\n※仮綴じとは，ダブルクリップ等で留めた物（ファイルを付ける必要はありません）\n*”Temporarily bound” means fastened with a double paperclip, etc. (a folder is not required)"]
[9,"審査用既発表学術論文　Previously Presented Academic Papers for use in examination\n既発表学術論文は，１冊にまとめて仮綴じし，表紙に既発表学術論文と明記の上，氏名を記入したもの（手引の２９頁を参照のこと。）を３冊（審査委員の人数によって増部することになるので，主指導教員の指示を受けること。）及び１部（連合農学係へ提出用）を作成すること。\nPreviously presented academic papers should be temporarily bound* together. On the cover page, clearly indicate that these are Previously Presented Academic Papers, and above that write your name (refer to page 16 of the Manual).\nSubmit three copies of your temporarily bound* previously presented academic papers (more copies may be required depending on the number of people on your review committee; follow the instructions of your Primary Academic Supervisor). Also prepare one copy for UGSAS office.\n※仮綴じとは，ダブルクリップ等で留めた物（ファイルを付ける必要はありません）\n*”Temporarily bound” means fastened with a double paperclip, etc. (a folder is not required)"]
[10,"学位論文  Dissertation\n学位論文は，研究科委員会において学位の授与が決定した後，製本（手引の６頁，２６頁，２７頁を参照のこと。）した上，1冊（リポジトリ登録延期の場合は、製本２冊）を連合農学係へ提出すること。学位申請時に提出した学位論文を修正した場合は，PDF(PDF/A)を再度提出すること。再提出しない場合は、先に提出した学位論文のPDF(PDF/A)が岐阜大学機関リポジトリに登録されます。\n　　※学位論文は，片面印刷したものを製本すること。\nAfter the Committee of professors has made the decision to confer a doctorate, your dissertation should be bound in book form (refer to pages 6 and 13, 14 in the Manual). After the dissertation has been bound, submit 1 copy and the PDF (PDF/A) file to the UGSAS Office. \n(If you postpone repository registration, please submit 2 bound copies of dissertation)\nIn case you make corrections or revisions after submitting, be sure to submit the new version. If not, the old version will be registered on the Gifu University Institutional Repository.\n*Dissertations are to be bound with pages printed on one side only.\n\n"]
[null,"※日本語のガイドを利用する場合は、日本語版のマニュアルを、英語のガイドを利用する場合\nは、英語版のマニュアルを参照してください。（それぞれページ番号や項目が違うことに注意\nしてください） \nPlease refer English version of the manual. (Note that some of page number and items are different from the manual in Japanese.)\n\n※提出書類を作成した6_shinseisho-macro.xlsm（本ファイル）も連農係にご提出下さい．\nPlease submit this Excel file (6_shinseisho-macro.xlsm) to the UGSAS office."]

{"sheet":"基本情報(Data)","index":1,"n_rows":43,"n_cols":8,"rows_kept":43,"cut":false,"hidden":false,"merged":[[24,1,24,8],[38,5,38,7],[14,2,15,2],[32,2,32,4],[27,2,27,4],[27,5,27,7],[0,0,0,6],[18,1,19,1],[16,5,16,6],[17,5,17,6],[2,2,3,2],[10,2,11,2],[2,1,17,1],[16,2,17,2],[4,2,5,2],[6,2,7,2],[8,2,9,2],[12,2,13,2]]}
["基本情報入力シート　Sheet for Basic Information"]
[]
[null,"申請者　Applicant","Application, Admission Dates, Language/ 申請日・入学年・言語","Application date（y/m/d）/ 申請年月日","Matriculation (date of admission)（y/m/d）/ 入学年月日","Language used in Dissertation/学位論文で用いる言語","Name-displaying order/名前表記順番"]
[]
[null,null," Name (to be written on your certificate)/ローマ字表記氏名","Family Name/ 姓","Middle Name","First (Given) Name/名","Name / 氏名(automatically filled)"]
[null,null,null,null,null,null,{"$f":"IF($F$6=\"\",\"\",IF($D$6=\"\",$F$6,IF($G$12=\"\",IF($G$4=\"First-(Middle)-Family\",IF($E$6=\"\",$F$6&\" \"&$D$6,$F$6&\" \"&$E$6&\" \"&$D$6),IF($E$6=\"\",$D$6&\" \"&$F$6,$D$6&\" \"&$E$6&\" \"&$F$6)),IF($E$6=\"\",UPPER($D$6)&\", \"&$F$6,UPPER($D$6)&\", \"&$F$6&\" \"&$E$6))))","v":""}]
[null,null,"Name using Chinese or Japanese characters (kanji) if any/氏名","Family Name/姓","Middle Name","First (Given) Name/名","Name /氏名(automatically filled)"]
[null,null,null,null,null,null,{"$f":"IF($F$8=\"\",\"\",IF($D$8=\"\",$F$8,IF($E$8=\"\",$D$8&\"　\"&$F$8,$D$8&\" \"&$E$8&\" \"&$F$8)))","v":""}]
[null,null,"Name using Katakana characters (required)/ フリガナ","Family Name/セイ","Middle Name","First (Given) Name/メイ","Name using Katakana characters/ カナ(automatically filled)"]
[null,null,null,null,null,null,{"$f":"IF($F$10=\"\",\"\",IF($D$10=\"\",$F$10,IF($G$12=\"\",IF(AND($F$4=\"英語 English\", $G$4=\"First-(Middle)-Family\"),IF($E$10=\"\",$F$10&\" \"&$D$10,$F$10&\" \"&$E$10&\" \"&$D$10),IF($E$10=\"\",$D$10&\" \"&$F$10,$D$10&\" \"&$E$10&\" \"&$F$10)),IF($E$10=\"\",$D$10&\" \"&$F$10,$D$10&\" \"&$E$10&\" \"&$F$10))))","v":""}]
[null,null,"Personal Data/個人情報","Sex/ 性別","Date of Birth(y/m/d)/生年月日","Country Name/ 国籍 (in alphabet）","本籍（都道府県名，日本人のみ，Only for Japanese）"]
[]
[null,null,"Affliation/ 所属","School Registration Number/ 学籍番号","Course/ 専攻","Major Chair/ 連合講座","Campus location/ 所属構成大学・配置大学"]
[]
[null,null,"Current Address/ 現住所等","Current E-mail address/ E-mailアドレス","Current phone number/ 電話番号","Current postal code/ 郵便番号","Current postal address/ 現住所"]
[]
[null,null,"Contact address after completion/ 修了後の連絡先","E-mail address after completion/ 修了後のE-mailアドレス","Phone number after completion/ 修了後の電話番号","Contact address after completion/ 修了後の連絡先（郵便番号から）"]
[]
[null,"主指導教員/代議員",null,"supervisor's name in Kanji (only for Kanji user)/ 主指導教員氏名","supervisor's name in roman alphabet/ 主指導教員氏名","Representative of UGSAS for documents check/ 書類確認を行う代議員"]
[null,null,"Name of Main Faculty Advisor (supervisor)(in either English or Japanese) / 主指導教員氏名"]
[]
[]
[]
[]
[null,"It is not necessary to edit the cells below/ 以下は選択リストのための作業領域（入力不要）"]
[]
[null,null,"岐阜大学大学院連合農学研究科"]
[null,null,"専攻(Course)",null,null,"代議員会委員"]
[null,null,"生物生産科学 Science of Biological Production","生物生産科学","Science of Biological Production","平松　研 Ken HIRAMATSU","平松　研","Ken HIRAMATSU"]
[null,null,"生物環境科学 Science of Biological Environment","生物環境科学","Science of Biological Environment","中野　浩平 Kohei NAKANO","中野　浩平","Kohei NAKANO"]
[null,null,"生物資源科学 Science of Biological Resources","生物資源科学","Science of Biological Resources","八代田真人 Masato YAYOTA","八代田真人","Masato YAYOTA"]
[null,null,"国際連携食品科学技術 International Joint Ph.D. Program in Food Science & Technology","国際連携食品科学技術","International Joint Ph.D. Program in Food Science & Technology","西村　眞一 Shinichi NISHIMURA","西村　眞一","Shinichi NISHIMURA"]
[null,null,"連合講座(Major Chair, Rengo-Koza)",null,null,"河合　真吾 Shingo KAWAI","河合　真吾","Shingo KAWAI"]
[null,null,"植物生産管理学 Plant Production & Management","植物生産管理学","Plant Production & Management","中川　智行 Tomoyuki NAKAGAWA","中川　智行","Tomoyuki NAKAGAWA"]
[null,null,"動物生産利用学 Animal Resource Production","動物生産利用学","Animal Resource Production","鈴木　克己 Katsumi SUZUKI","鈴木　克己","Katsumi SUZUKI"]
[null,null,"環境整備学 Agricultural & Environmental Engineering","環境整備学","Agricultural & Environmental Engineering","山下　雅幸 Masayuki YAMASHITA","山下　雅幸","Masayuki YAMASHITA"]
[null,null,"生物環境管理学 Management of Biological Environment","生物環境管理学","Management of Biological Environment","鈴木　健一 Kenichi SUZUKI","鈴木　健一","Kenichi SUZUKI"]
[null,null,"生物資源利用学 Utilization of Biological Resources","生物資源利用学","Utilization of Biological Resources","小林　佑理子 Yuriko KOBAYASHI","小林　佑理子","Yuriko KOBAYASHI"]
[null,null,"スマートマテリアル科学 Smart Material Science","スマートマテリアル科学","Smart Material Science","配置大学"]
[null,null,"生物機能制御学 Regulation of Biological Functions","生物機能制御学","Regulation of Biological Functions","岐阜大学 Gifu University","岐阜大学","Gifu University"]
[null,null,null,null,null,"静岡大学 Shizuoka University","静岡大学","Shizuoka University"]
[null,null,"専攻と連合講座の一致確認"]
[null,null,{"$f":"IF(AND($E$14=C29,OR($F$14=C34,$F$14=C35)),\"OK\",IF(AND($E$14=C30,OR($F$14=C36,$F$14=C37)),\"OK\",IF(AND($E$14=C31,OR($F$14=C38,$F$14=C39,$F$14=C40)),\"OK\",IF(AND($E$14=C32,$F$14=\"\"),\"OK\",IF(AND($E$14=D29,OR($F$14=D34,$F$14=D35)),\"OK\",IF(AND($E$14=D30,OR($F$14=D36,$F$14=D37)),\"OK\",IF(AND($E$14=D31,OR($F$14=D38,$F$14=D39,$F$14=D40)),\"OK\",IF(AND($E$14=D32,$F$14=\"\"),\"OK\",\"NG\"))))))))","v":"NG"}]

{"sheet":"論文情報(Papers)","index":2,"n_rows":84,"n_cols":28,"rows_kept":84,"cut":false,"hidden":false,"merged":[[3,1,3,30],[8,2,8,30],[4,5,4,30],[14,2,14,20],[13,2,13,20],[5,5,5,30],[4,1,4,4],[5,1,5,4],[7,2,7,30],[28,3,28,8],[21,2,21,30],[15,12,15,19],[18,20,18,22],[20,1,31,1],[22,2,22,30],[23,2,23,30],[24,2,24,30],[25,2,25,30],[26,21,26,30],[27,21,27,30],[7,1,18,1],[27,2,27,20],[10,2,10,30],[11,2,11,30],[9,2,9,30],[12,2,12,30],[14,21,14,30],[13,21,13,30],[17,16,17,30],[17,2,17,15],[18,3,18,14],[15,22,15,29],[20,2,20,30],[83,24,83,26],[73,2,73,30],[72,2,72,30],[82,2,82,15],[82,16,82,30],[63,2,63,30],[60,2,60,30],[81,3,81,16],[81,19,81,30],[70,24,70,26],[72,1,83,1],[78,2,78,20],[79,2,79,20],[80,3,80,8],[80,12,80,19],[70,3,70,14],[70,20,70,22],[83,3,83,14],[83,20,83,22],[36,2,36,30],[37,2,37,30],[38,2,38,30],[39,21,39,30],[40,21,40,30],[41,22,41,29],[59,1,70,1],[65,2,65,20],[66,2,66,20],[67,3,67,8],[67,12,67,19],[69,16,69,30],[33,1,44,1],[46,1,57,1],[52,2,52,20],[53,2,53,20],[54,3,54,8],[54,12,54,19],[41,3,41,8],[64,2,64,30],[65,21,65,30],[66,21,66,30],[67,22,67,29],[69,2,69,15],[56,2,56,15],[56,16,56,30],[57,3,57,14],[57,20,57,22],[57,24,57,26],[61,2,61,30],[62,2,62,30],[59,2,59,30],[68,3,68,16],[68,19,68,30],[4,33,4,58],[0,0,1,31],[74,2,74,30],[75,2,75,30],[76,2,76,30],[77,2,77,30],[78,21,78,30],[79,21,79,30],[80,22,80,29],[47,2,47,30],[48,2,48,30],[49,2,49,30],[50,2,50,30],[51,2,51,30],[52,21,52,30],[53,21,53,30],[54,22,54,29],[43,2,43,15],[43,16,43,30],[44,3,44,14],[44,20,44,22],[44,24,44,26],[41,12,41,19],[39,2,39,20],[5,33,5,58],[16,3,16,16],[16,19,16,30],[29,3,29,16],[29,19,29,30],[42,3,42,16],[42,19,42,30],[55,3,55,16],[55,19,55,30],[28,22,28,29],[28,12,28,19],[30,2,30,15],[30,16,30,30],[31,3,31,14],[31,20,31,22],[31,24,31,26],[33,2,33,30],[18,24,18,26],[15,3,15,8],[26,2,26,20],[40,2,40,20],[46,2,46,30],[34,2,34,30],[35,2,35,30]]}
["論文情報入力シート　Sheet for Dessertation and Papers Information"]
[]
[]
[null,"学位論文題目 Title of Dissertation"]
[null,"学位論文（英文）Dissertation (in English)"]
[null,"学位論文（和文）\nDissertation (in Japanese)"]
[]
[null,"学位論文の基礎となる学術論文１\nAcademic Papers that Form the Basis of Dissertation No.1","基礎論文(Academic Paper)"]
[]
[null,null,"基礎論文題目 Title of Paper "]
[null,null,""]
[null,null,"著者名 Authors"]
[null,null,{"$f":"IF($C9=\"\",\"\",LEFT($C9,(FIND(\":\",SUBSTITUTE($C9,\"：\",\":\"))-1)))","v":""}]
[null,null,"学術雑誌名 Name of Journal",null,null,null,null,null,null,null,null,null,null,null,null,null,null,null,null,null,null,"掲載状況/Publication"]
[null,null,{"$f":"IF($C9=\"\",\"\",MID($C9,(FIND(\",\",SUBSTITUTE($C9,\"，\",\",\"),FIND(\":\",SUBSTITUTE($C9,\"：\",\":\"))+1)+1),(FIND(\",\",SUBSTITUTE($C9,\"，\",\",\"),(FIND(\",\",SUBSTITUTE($C9,\"，\",\",\"),FIND(\":\",SUBSTITUTE($C9,\"：\",\":\"))+1)+1))-FIND(\",\",SUBSTITUTE($C9,\"，\",\",\"),FIND(\":\",SUBSTITUTE($C9,\"：\",\":\"))+1)-1)))","v":""},null,null,null,null,null,null,null,null,null,null,null,null,null,null,null,null,null,null,{"$f":"IF($C9=\"\",\"－\",IF(TRIM(LOWER(SUBSTITUTE(SUBSTITUTE(RIGHT($C9,LEN($C9)-FIND(\"●\",(SUBSTITUTE(SUBSTITUTE($C9,\"，\",\",\"),\",\",\"●\",(LEN($C9)-LEN(SUBSTITUTE(SUBSTITUTE($C9,\"，\",\"\"),\",\",\"\"))))))),\"．\",\".\"),\".\",\"\")))=\"submitted\",\"submitted/投稿中\",IF(TRIM(LOWER(SUBSTITUTE(SUBSTITUTE(RIGHT($C9,LEN($C9)-FIND(\"●\",(SUBSTITUTE(SUBSTITUTE($C9,\"，\",\",\"),\",\",\"●\",(LEN($C9)-LEN(SUBSTITUTE(SUBSTITUTE($C9,\"，\",\"\"),\",\",\"\"))))))),\"．\",\".\"),\".\",\"\")))=\"in press\",\"in press/印刷中\",\"published/掲載済\")))","v":"－"}]
[null,null,"□","Core Collection in Web of Science",null,null,null,null,null,null,null,"□","Current Contents Connect in Web of Science",null,null,null,null,null,null,null,null,"□","Reviews in Agricultural Science"]
[null,null,"□","19th registered by the Science Council of Japan/ 19期学術会議登録団体の学術誌",null,null,null,null,null,null,null,null,null,null,null,null,null,null,"□","Specially admitted by UGSAS committee/研究科が特別に認めたもの"]
[null,null,"（巻･号･頁）Vol., No., Page",null,null,null,null,null,null,null,null,null,null,null,null,null,"発行年月 Date published (year,month)"]
[null,null,"（",{"$f":"IF($V15=\"published/掲載済\",MID($C9,(FIND(\",\",SUBSTITUTE($C9,\"，\",\",\"),(FIND(\",\",SUBSTITUTE($C9,\"，\",\",\"),FIND(\":\",SUBSTITUTE($C9,\"：\",\":\"))+1)+1)))+1,FIND(\"●\",(SUBSTITUTE(SUBSTITUTE($C9,\"，\",\",\"),\",\",\"●\",(LEN($C9)-LEN(SUBSTITUTE(SUBSTITUTE($C9,\"，\",\"\"),\",\",\"\"))))))-(FIND(\",\",SUBSTITUTE($C9,\"，\",\",\"),(FIND(\",\",SUBSTITUTE($C9,\"，\",\",\"),FIND(\":\",SUBSTITUTE($C9,\"：\",\":\"))+1)+1))+1)),\"\")","v":""},null,null,null,null,null,null,null,null,null,null,null,"）",null,null,null,null,{"$f":"IF($V15=\"published/掲載済\",LOWER(SUBSTITUTE(SUBSTITUTE(RIGHT($C9,LEN($C9)-FIND(\"●\",(SUBSTITUTE(SUBSTITUTE($C9,\"，\",\",\"),\",\",\"●\",(LEN($C9)-LEN(SUBSTITUTE(SUBSTITUTE($C9,\"，\",\"\"),\",\",\"\"))))))),\"．\",\".\"),\".\",\"\")),\"\")","v":""},null,null,"年",null,null,null,"月"]
[]
[null,"学位論文の基礎となる学術論文２\nAcademic Papers that Form the Basis of Dissertation No.2","基礎論文(Academic Paper)"]
[]
[null,null,"基礎論文題目 Title of Paper "]
[null,null,""]
[null,null,"著者名 Authors"]
[null,null,{"$f":"IF($C22=\"\",\"\",LEFT($C22,(FIND(\":\",SUBSTITUTE($C22,\"：\",\":\"))-1)))","v":""}]
[null,null,"学術雑誌名 Name of Journal",null,null,null,null,null,null,null,null,null,null,null,null,null,null,null,null,null,null,"掲載状況/Publication"]
[null,null,{"$f":"IF($C22=\"\",\"\",MID($C22,(FIND(\",\",SUBSTITUTE($C22,\"，\",\",\"),FIND(\":\",SUBSTITUTE($C22,\"：\",\":\"))+1)+1),(FIND(\",\",SUBSTITUTE($C22,\"，\",\",\"),(FIND(\",\",SUBSTITUTE($C22,\"，\",\",\"),FIND(\":\",SUBSTITUTE($C22,\"：\",\":\"))+1)+1))-FIND(\",\",SUBSTITUTE($C22,\"，\",\",\"),FIND(\":\",SUBSTITUTE($C22,\"：\",\":\"))+1)-1)))","v":""},null,null,null,null,null,null,null,null,null,null,null,null,null,null,null,null,null,null,{"$f":"IF($C22=\"\",\"－\",IF(TRIM(LOWER(SUBSTITUTE(SUBSTITUTE(RIGHT($C22,LEN($C22)-FIND(\"●\",(SUBSTITUTE(SUBSTITUTE($C22,\"，\",\",\"),\",\",\"●\",(LEN($C22)-LEN(SUBSTITUTE(SUBSTITUTE($C22,\"，\",\"\"),\",\",\"\"))))))),\"．\",\".\"),\".\",\"\")))=\"submitted\",\"submitted/投稿中\",IF(TRIM(LOWER(SUBSTITUTE(SUBSTITUTE(RIGHT($C22,LEN($C22)-FIND(\"●\",(SUBSTITUTE(SUBSTITUTE($C22,\"，\",\",\"),\",\",\"●\",(LEN($C22)-LEN(SUBSTITUTE(SUBSTITUTE($C22,\"，\",\"\"),\",\",\"\"))))))),\"．\",\".\"),\".\",\"\")))=\"in press\",\"in press/印刷中\",\"published/掲載済\")))","v":"－"}]
[null,null,"□","Core Collection in Web of Science",null,null,null,null,null,null,null,"□","Current Contents Connect in Web of Science",null,null,null,null,null,null,null,null,"□","Reviews in Agricultural Science"]
[null,null,"□","19th registered by the Science Council of Japan/ 19期学術会議登録団体の学術誌",null,null,null,null,null,null,null,null,null,null,null,null,null,null,"□","Specially admitted by UGSAS committee/研究科が特別に認めたもの"]
[null,null,"（巻･号･頁）Vol., No., Page",null,null,null,null,null,null,null,null,null,null,null,null,null,"発行年月 Date published (year,month)"]
[null,null,"（",{"$f":"IF($V28=\"published/掲載済\",MID($C22,(FIND(\",\",SUBSTITUTE($C22,\"，\",\",\"),(FIND(\",\",SUBSTITUTE($C22,\"，\",\",\"),FIND(\":\",SUBSTITUTE($C22,\"：\",\":\"))+1)+1)))+1,FIND(\"●\",(SUBSTITUTE(SUBSTITUTE($C22,\"，\",\",\"),\",\",\"●\",(LEN($C22)-LEN(SUBSTITUTE(SUBSTITUTE($C22,\"，\",\"\"),\",\",\"\"))))))-(FIND(\",\",SUBSTITUTE($C22,\"，\",\",\"),(FIND(\",\",SUBSTITUTE($C22,\"，\",\",\"),FIND(\":\",SUBSTITUTE($C22,\"：\",\":\"))+1)+1))+1)),\"\")","v":""},null,null,null,null,null,null,null,null,null,null,null,"）",null,null,null,null,{"$f":"IF($V28=\"published/掲載済\",LOWER(SUBSTITUTE(SUBSTITUTE(RIGHT($C22,LEN($C22)-FIND(\"●\",(SUBSTITUTE(SUBSTITUTE($C22,\"，\",\",\"),\",\",\"●\",(LEN($C22)-LEN(SUBSTITUTE(SUBSTITUTE($C22,\"，\",\"\"),\",\",\"\"))))))),\"．\",\".\"),\".\",\"\")),\"\")","v":""},null,null,"年",null,null,null,"月"]
[]
[null,"学位論文の基礎となる学術論文３\nAcademic Papers that Form the Basis of Dissertation No.3","基礎論文(Academic Paper)"]
[]
[null,null,"基礎論文題目 Title of Paper "]
[null,null,""]
[null,null,"著者名 Authors"]
[null,null,{"$f":"IF($C35=\"\",\"\",LEFT($C35,(FIND(\":\",SUBSTITUTE($C35,\"：\",\":\"))-1)))","v":""}]
[null,null,"学術雑誌名 Name of Journal",null,null,null,null,null,null,null,null,null,null,null,null,null,null,null,null,null,null,"掲載状況/Publication"]
[null,null,{"$f":"IF($C35=\"\",\"\",MID($C35,(FIND(\",\",SUBSTITUTE($C35,\"，\",\",\"),FIND(\":\",SUBSTITUTE($C35,\"：\",\":\"))+1)+1),(FIND(\",\",SUBSTITUTE($C35,\"，\",\",\"),(FIND(\",\",SUBSTITUTE($C35,\"，\",\",\"),FIND(\":\",SUBSTITUTE($C35,\"：\",\":\"))+1)+1))-FIND(\",\",SUBSTITUTE($C35,\"，\",\",\"),FIND(\":\",SUBSTITUTE($C35,\"：\",\":\"))+1)-1)))","v":""},null,null,null,null,null,null,null,null,null,null,null,null,null,null,null,null,null,null,{"$f":"IF($C35=\"\",\"－\",IF(TRIM(LOWER(SUBSTITUTE(SUBSTITUTE(RIGHT($C35,LEN($C35)-FIND(\"●\",(SUBSTITUTE(SUBSTITUTE($C35,\"，\",\",\"),\",\",\"●\",(LEN($C35)-LEN(SUBSTITUTE(SUBSTITUTE($C35,\"，\",\"\"),\",\",\"\"))))))),\"．\",\".\"),\".\",\"\")))=\"submitted\",\"submitted/投稿中\",IF(TRIM(LOWER(SUBSTITUTE(SUBSTITUTE(RIGHT($C35,LEN($C35)-FIND(\"●\",(SUBSTITUTE(SUBSTITUTE($C35,\"，\",\",\"),\",\",\"●\",(LEN($C35)-LEN(SUBSTITUTE(SUBSTITUTE($C35,\"，\",\"\"),\",\",\"\"))))))),\"．\",\".\"),\".\",\"\")))=\"in press\",\"in press/印刷中\",\"published/掲載済\")))","v":"－"}]
[null,null,"□","Core Collection in Web of Science",null,null,null,null,null,null,null,"□","Current Contents Connect in Web of Science",null,null,null,null,null,null,null,null,"□","Reviews in Agricultural Science"]
[null,null,"□","19th registered by the Science Council of Japan/ 19期学術会議登録団体の学術誌",null,null,null,null,null,null,null,null,null,null,null,null,null,null,"□","Specially admitted by UGSAS committee/研究科が特別に認めたもの"]
[null,null,"（巻･号･頁）Vol., No., Page",null,null,null,null,null,null,null,null,null,null,null,null,null,"発行年月 Date published (year,month)"]
[null,null,"（",{"$f":"IF($V41=\"published/掲載済\",MID($C35,(FIND(\",\",SUBSTITUTE($C35,\"，\",\",\"),(FIND(\",\",SUBSTITUTE($C35,\"，\",\",\"),FIND(\":\",SUBSTITUTE($C35,\"：\",\":\"))+1)+1)))+1,FIND(\"●\",(SUBSTITUTE(SUBSTITUTE($C35,\"，\",\",\"),\",\",\"●\",(LEN($C35)-LEN(SUBSTITUTE(SUBSTITUTE($C35,\"，\",\"\"),\",\",\"\"))))))-(FIND(\",\",SUBSTITUTE($C35,\"，\",\",\"),(FIND(\",\",SUBSTITUTE($C35,\"，\",\",\"),FIND(\":\",SUBSTITUTE($C35,\"：\",\":\"))+1)+1))+1)),\"\")","v":""},null,null,null,null,null,null,null,null,null,null,null,"）",null,null,null,null,{"$f":"IF($V41=\"published/掲載済\",LOWER(SUBSTITUTE(SUBSTITUTE(RIGHT($C35,LEN($C35)-FIND(\"●\",(SUBSTITUTE(SUBSTITUTE($C35,\"，\",\",\"),\",\",\"●\",(LEN($C35)-LEN(SUBSTITUTE(SUBSTITUTE($C35,\"，\",\"\"),\",\",\"\"))))))),\"．\",\".\"),\".\",\"\")),\"\")","v":""},null,null,"年",null,null,null,"月"]
[]
[null,"学位論文の基礎となる学術論文４\nAcademic Papers that Form the Basis of Dissertation No.4","基礎論文(Academic Paper)"]
[]
[null,null,"基礎論文題目 Title of Paper "]
[null,null,""]
[null,null,"著者名 Authors"]
[null,null,{"$f":"IF($C48=\"\",\"\",LEFT($C48,(FIND(\":\",SUBSTITUTE($C48,\"：\",\":\"))-1)))","v":""}]
[null,null,"学術雑誌名 Name of Journal",null,null,null,null,null,null,null,null,null,null,null,null,null,null,null,null,null,null,"掲載状況/Publication"]
[null,null,{"$f":"IF($C48=\"\",\"\",MID($C48,(FIND(\",\",SUBSTITUTE($C48,\"，\",\",\"),FIND(\":\",SUBSTITUTE($C48,\"：\",\":\"))+1)+1),(FIND(\",\",SUBSTITUTE($C48,\"，\",\",\"),(FIND(\",\",SUBSTITUTE($C48,\"，\",\",\"),FIND(\":\",SUBSTITUTE($C48,\"：\",\":\"))+1)+1))-FIND(\",\",SUBSTITUTE($C48,\"，\",\",\"),FIND(\":\",SUBSTITUTE($C48,\"：\",\":\"))+1)-1)))","v":""},null,null,null,null,null,null,null,null,null,null,null,null,null,null,null,null,null,null,{"$f":"IF($C48=\"\",\"－\",IF(TRIM(LOWER(SUBSTITUTE(SUBSTITUTE(RIGHT($C48,LEN($C48)-FIND(\"●\",(SUBSTITUTE(SUBSTITUTE($C48,\"，\",\",\"),\",\",\"●\",(LEN($C48)-LEN(SUBSTITUTE(SUBSTITUTE($C48,\"，\",\"\"),\",\",\"\"))))))),\"．\",\".\"),\".\",\"\")))=\"submitted\",\"submitted/投稿中\",IF(TRIM(LOWER(SUBSTITUTE(SUBSTITUTE(RIGHT($C48,LEN($C48)-FIND(\"●\",(SUBSTITUTE(SUBSTITUTE($C48,\"，\",\",\"),\",\",\"●\",(LEN($C48)-LEN(SUBSTITUTE(SUBSTITUTE($C48,\"，\",\"\"),\",\",\"\"))))))),\"．\",\".\"),\".\",\"\")))=\"in press\",\"in press/印刷中\",\"published/掲載済\")))","v":"－"}]
[null,null,"□","Core Collection in Web of Science",null,null,null,null,null,null,null,"□","Current Contents Connect in Web of Science",null,null,null,null,null,null,null,null,"□","Reviews in Agricultural Science"]
[null,null,"□","19th registered by the Science Council of Japan/ 19期学術会議登録団体の学術誌",null,null,null,null,null,null,null,null,null,null,null,null,null,null,"□","Specially admitted by UGSAS committee/研究科が特別に認めたもの"]
[null,null,"（巻･号･頁）Vol., No., Page",null,null,null,null,null,null,null,null,null,null,null,null,null,"発行年月 Date published (year,month)"]
[null,null,"（",{"$f":"IF($V54=\"published/掲載済\",MID($C48,(FIND(\",\",SUBSTITUTE($C48,\"，\",\",\"),(FIND(\",\",SUBSTITUTE($C48,\"，\",\",\"),FIND(\":\",SUBSTITUTE($C48,\"：\",\":\"))+1)+1)))+1,FIND(\"●\",(SUBSTITUTE(SUBSTITUTE($C48,\"，\",\",\"),\",\",\"●\",(LEN($C48)-LEN(SUBSTITUTE(SUBSTITUTE($C48,\"，\",\"\"),\",\",\"\"))))))-(FIND(\",\",SUBSTITUTE($C48,\"，\",\",\"),(FIND(\",\",SUBSTITUTE($C48,\"，\",\",\"),FIND(\":\",SUBSTITUTE($C48,\"：\",\":\"))+1)+1))+1)),\"\")","v":""},null,null,null,null,null,null,null,null,null,null,null,"）",null,null,null,null,{"$f":"IF($V54=\"published/掲載済\",LOWER(SUBSTITUTE(SUBSTITUTE(RIGHT($C48,LEN($C48)-FIND(\"●\",(SUBSTITUTE(SUBSTITUTE($C48,\"，\",\",\"),\",\",\"●\",(LEN($C48)-LEN(SUBSTITUTE(SUBSTITUTE($C48,\"，\",\"\"),\",\",\"\"))))))),\"．\",\".\"),\".\",\"\")),\"\")","v":""},null,null,"年",null,null,null,"月"]
[]
[null,"学位論文の基礎となる学術論文５\nAcademic Papers that Form the Basis of Dissertation No.5","基礎論文(Academic Paper)"]
[]
[null,null,"基礎論文題目 Title of Paper "]
[null,null,""]
[null,null,"著者名 Authors"]
[null,null,{"$f":"IF($C61=\"\",\"\",LEFT($C61,(FIND(\":\",SUBSTITUTE($C61,\"：\",\":\"))-1)))","v":""}]
[null,null,"学術雑誌名 Name of Journal",null,null,null,null,null,null,null,null,null,null,null,null,null,null,null,null,null,null,"掲載状況/Publication"]
[null,null,{"$f":"IF($C61=\"\",\"\",MID($C61,(FIND(\",\",SUBSTITUTE($C61,\"，\",\",\"),FIND(\":\",SUBSTITUTE($C61,\"：\",\":\"))+1)+1),(FIND(\",\",SUBSTITUTE($C61,\"，\",\",\"),(FIND(\",\",SUBSTITUTE($C61,\"，\",\",\"),FIND(\":\",SUBSTITUTE($C61,\"：\",\":\"))+1)+1))-FIND(\",\",SUBSTITUTE($C61,\"，\",\",\"),FIND(\":\",SUBSTITUTE($C61,\"：\",\":\"))+1)-1)))","v":""},null,null,null,null,null,null,null,null,null,null,null,null,null,null,null,null,null,null,{"$f":"IF($C61=\"\",\"－\",IF(TRIM(LOWER(SUBSTITUTE(SUBSTITUTE(RIGHT($C61,LEN($C61)-FIND(\"●\",(SUBSTITUTE(SUBSTITUTE($C61,\"，\",\",\"),\",\",\"●\",(LEN($C61)-LEN(SUBSTITUTE(SUBSTITUTE($C61,\"，\",\"\"),\",\",\"\"))))))),\"．\",\".\"),\".\",\"\")))=\"submitted\",\"submitted/投稿中\",IF(TRIM(LOWER(SUBSTITUTE(SUBSTITUTE(RIGHT($C61,LEN($C61)-FIND(\"●\",(SUBSTITUTE(SUBSTITUTE($C61,\"，\",\",\"),\",\",\"●\",(LEN($C61)-LEN(SUBSTITUTE(SUBSTITUTE($C61,\"，\",\"\"),\",\",\"\"))))))),\"．\",\".\"),\".\",\"\")))=\"in press\",\"in press/印刷中\",\"published/掲載済\")))","v":"－"}]
[null,null,"□","Core Collection in Web of Science",null,null,null,null,null,null,null,"□","Current Contents Connect in Web of Science",null,null,null,null,null,null,null,null,"□","Reviews in Agricultural Science"]
[null,null,"□","19th registered by the Science Council of Japan/ 19期学術会議登録団体の学術誌",null,null,null,null,null,null,null,null,null,null,null,null,null,null,"□","Specially admitted by UGSAS committee/研究科が特別に認めたもの"]
[null,null,"（巻･号･頁）Vol., No., Page",null,null,null,null,null,null,null,null,null,null,null,null,null,"発行年月 Date published (year,month)"]
[null,null,"（",{"$f":"IF($V67=\"published/掲載済\",MID($C61,(FIND(\",\",SUBSTITUTE($C61,\"，\",\",\"),(FIND(\",\",SUBSTITUTE($C61,\"，\",\",\"),FIND(\":\",SUBSTITUTE($C61,\"：\",\":\"))+1)+1)))+1,FIND(\"●\",(SUBSTITUTE(SUBSTITUTE($C61,\"，\",\",\"),\",\",\"●\",(LEN($C61)-LEN(SUBSTITUTE(SUBSTITUTE($C61,\"，\",\"\"),\",\",\"\"))))))-(FIND(\",\",SUBSTITUTE($C61,\"，\",\",\"),(FIND(\",\",SUBSTITUTE($C61,\"，\",\",\"),FIND(\":\",SUBSTITUTE($C61,\"：\",\":\"))+1)+1))+1)),\"\")","v":""},null,null,null,null,null,null,null,null,null,null,null,"）",null,null,null,null,{"$f":"IF($V67=\"published/掲載済\",LOWER(SUBSTITUTE(SUBSTITUTE(RIGHT($C61,LEN($C61)-FIND(\"●\",(SUBSTITUTE(SUBSTITUTE($C61,\"，\",\",\"),\",\",\"●\",(LEN($C61)-LEN(SUBSTITUTE(SUBSTITUTE($C61,\"，\",\"\"),\",\",\"\"))))))),\"．\",\".\"),\".\",\"\")),\"\")","v":""},null,null,"年",null,null,null,"月"]
[]
[null,"学位論文の基礎となる学術論文６\nAcademic Papers that Form the Basis of Dissertation No.6","基礎論文(Academic Paper)"]
[]
[null,null,"基礎論文題目 Title of Paper "]
[]
[null,null,"著者名 Authors"]
[null,null,{"$f":"IF($C74=\"\",\"\",LEFT($C74,(FIND(\":\",SUBSTITUTE($C74,\"：\",\":\"))-1)))","v":""}]
[null,null,"学術雑誌名 Name of Journal",null,null,null,null,null,null,null,null,null,null,null,null,null,null,null,null,null,null,"掲載状況/Publication"]
[null,null,{"$f":"IF($C74=\"\",\"\",MID($C74,(FIND(\",\",SUBSTITUTE($C74,\"，\",\",\"),FIND(\":\",SUBSTITUTE($C74,\"：\",\":\"))+1)+1),(FIND(\",\",SUBSTITUTE($C74,\"，\",\",\"),(FIND(\",\",SUBSTITUTE($C74,\"，\",\",\"),FIND(\":\",SUBSTITUTE($C74,\"：\",\":\"))+1)+1))-FIND(\",\",SUBSTITUTE($C74,\"，\",\",\"),FIND(\":\",SUBSTITUTE($C74,\"：\",\":\"))+1)-1)))","v":""},null,null,null,null,null,null,null,null,null,null,null,null,null,null,null,null,null,null,{"$f":"IF($C74=\"\",\"－\",IF(TRIM(LOWER(SUBSTITUTE(SUBSTITUTE(RIGHT($C74,LEN($C74)-FIND(\"●\",(SUBSTITUTE(SUBSTITUTE($C74,\"，\",\",\"),\",\",\"●\",(LEN($C74)-LEN(SUBSTITUTE(SUBSTITUTE($C74,\"，\",\"\"),\",\",\"\"))))))),\"．\",\".\"),\".\",\"\")))=\"submitted\",\"submitted/投稿中\",IF(TRIM(LOWER(SUBSTITUTE(SUBSTITUTE(RIGHT($C74,LEN($C74)-FIND(\"●\",(SUBSTITUTE(SUBSTITUTE($C74,\"，\",\",\"),\",\",\"●\",(LEN($C74)-LEN(SUBSTITUTE(SUBSTITUTE($C74,\"，\",\"\"),\",\",\"\"))))))),\"．\",\".\"),\".\",\"\")))=\"in press\",\"in press/印刷中\",\"published/掲載済\")))","v":"－"}]
[null,null,"□","Core Collection in Web of Science",null,null,null,null,null,null,null,"□","Current Contents Connect in Web of Science",null,null,null,null,null,null,null,null,"□","Reviews in Agricultural Science"]
[null,null,"□","19th registered by the Science Council of Japan/ 19期学術会議登録団体の学術誌",null,null,null,null,null,null,null,null,null,null,null,null,null,null,"□","Specially admitted by UGSAS committee/研究科が特別に認めたもの"]
[null,null,"（巻･号･頁）Vol., No., Page",null,null,null,null,null,null,null,null,null,null,null,null,null,"発行年月 Date published (year,month)"]
[null,null,"（",{"$f":"IF($V80=\"published/掲載済\",MID($C74,(FIND(\",\",SUBSTITUTE($C74,\"，\",\",\"),(FIND(\",\",SUBSTITUTE($C74,\"，\",\",\"),FIND(\":\",SUBSTITUTE($C74,\"：\",\":\"))+1)+1)))+1,FIND(\"●\",(SUBSTITUTE(SUBSTITUTE($C74,\"，\",\",\"),\",\",\"●\",(LEN($C74)-LEN(SUBSTITUTE(SUBSTITUTE($C74,\"，\",\"\"),\",\",\"\"))))))-(FIND(\",\",SUBSTITUTE($C74,\"，\",\",\"),(FIND(\",\",SUBSTITUTE($C74,\"，\",\",\"),FIND(\":\",SUBSTITUTE($C74,\"：\",\":\"))+1)+1))+1)),\"\")","v":""},null,null,null,null,null,null,null,null,null,null,null,"）",null,null,null,null,{"$f":"IF($V80=\"published/掲載済\",LOWER(SUBSTITUTE(SUBSTITUTE(RIGHT($C74,LEN($C74)-FIND(\"●\",(SUBSTITUTE(SUBSTITUTE($C74,\"，\",\",\"),\",\",\"●\",(LEN($C74)-LEN(SUBSTITUTE(SUBSTITUTE($C74,\"，\",\"\"),\",\",\"\"))))))),\"．\",\".\"),\".\",\"\")),\"\")","v":""},null,null,"年",null,null,null,"月"]

{"sheet":"チェックシート(CheckSheet)","index":3,"n_rows":52,"n_cols":73,"rows_kept":52,"cut":false,"hidden":false,"merged":[[51,0,51,54],[50,55,50,73],[51,55,51,73],[45,0,45,2],[46,3,46,75],[45,3,45,75],[47,3,47,75],[48,3,48,75],[49,0,49,75],[50,0,50,54],[43,46,43,53],[43,72,43,75],[44,0,44,45],[44,46,44,53],[44,72,44,75],[43,54,43,71],[44,54,44,71],[41,46,41,53],[41,72,41,75],[42,0,42,45],[42,46,42,53],[42,72,42,75],[41,54,41,57],[41,58,41,64],[41,65,41,71],[42,54,42,71],[39,46,39,53],[39,72,39,75],[40,0,40,45],[40,46,40,53],[40,72,40,75],[39,54,39,57],[39,58,39,64],[39,65,39,71],[40,54,40,71],[37,46,37,53],[37,72,37,75],[38,0,38,45],[38,46,38,53],[38,72,38,75],[37,54,37,57],[38,54,38,57],[37,58,37,64],[37,65,37,71],[38,58,38,64],[38,65,38,71],[35,46,35,53],[35,72,35,75],[36,0,36,45],[36,46,36,53],[36,72,36,75],[35,54,35,57],[36,54,36,57],[35,58,35,64],[35,65,35,71],[36,58,36,64],[36,65,36,71],[33,46,33,53],[33,72,33,75],[34,0,34,45],[34,46,34,53],[34,72,34,75],[33,54,33,57],[34,54,34,57],[33,58,33,64],[33,65,33,71],[34,58,34,64],[34,65,34,71],[4,0,4,32],[7,46,7,53],[23,0,23,33],[15,0,15,45],[16,0,16,45],[17,0,17,45],[18,0,18,45],[14,46,14,53],[15,46,15,53],[16,46,16,53],[5,0,5,45],[19,2,19,75],[20,2,20,75],[21,2,21,75],[22,2,22,75],[6,0,6,45],[7,0,7,45],[8,0,8,45],[11,0,11,45],[9,0,9,45],[10,0,10,45],[12,46,12,53],[13,46,13,53],[11,46,11,53],[30,0,30,75],[33,0,33,45],[35,0,35,45],[37,0,37,45],[39,0,39,45],[41,0,41,45],[43,0,43,45],[17,46,17,53],[18,46,18,53],[31,46,31,53],[31,72,31,75],[32,0,32,45],[32,46,32,53],[32,72,32,75],[31,54,31,57],[32,54,32,57],[31,58,31,64],[31,65,31,71],[32,58,32,64],[32,65,32,71],[31,0,31,45],[24,55,24,67],[25,55,25,67],[24,0,24,54],[15,60,15,65],[15,54,15,59],[29,37,29,44],[29,18,29,23],[12,0,12,45],[13,0,13,45],[14,0,14,45],[16,54,16,71],[17,54,17,71],[12,66,12,71],[13,66,13,71],[15,66,15,71],[14,54,14,71],[18,54,18,71],[25,0,25,54],[28,0,28,75],[29,0,29,7],[29,8,29,16],[29,24,29,35],[29,45,29,54],[29,56,29,67],[5,72,5,75],[5,66,5,71],[5,60,5,65],[5,54,5,59],[5,46,5,53],[9,66,9,71],[10,66,10,71],[6,60,6,65],[7,60,7,65],[8,60,8,65],[9,60,9,65],[10,60,10,65],[8,46,8,53],[9,46,9,53],[10,46,10,53],[6,46,6,53],[6,66,6,71],[7,66,7,71],[8,66,8,71],[6,72,6,75],[7,72,7,75],[8,72,8,75],[9,72,9,75],[10,72,10,75],[11,60,11,65],[6,54,6,59],[7,54,7,59],[8,54,8,59],[9,54,9,59],[10,54,10,59],[11,54,11,59],[12,54,12,59],[13,54,13,59],[12,60,12,65],[13,60,13,65],[1,0,1,75],[3,0,3,7],[3,19,3,23],[3,8,3,16],[3,24,3,35],[3,38,3,44],[3,45,3,54],[3,57,3,63],[3,64,3,75],[11,72,11,75],[12,72,12,75],[13,72,13,75],[14,72,14,75],[15,72,15,75],[16,72,16,75],[17,72,17,75],[18,72,18,75],[11,66,11,71]]}
[]
["学位論文申請関係書類チェックシート　List of documents required for degree application"]
[]
["所属構成大学:",null,null,null,null,null,null,null,{"$f":"IF(COUNTBLANK('基本情報(Data)'!G14)=0, VLOOKUP('基本情報(Data)'!G14,'基本情報(Data)'!$F$40:$H$41,2,0),\"\")","v":""},null,null,null,null,null,null,null,null,null,null,"申　請　者:",null,null,null,null,{"$f":"IF(OR('基本情報(Data)'!$F$4=\"英語 English/学位記氏名漢字 kanji\",'基本情報(Data)'!$F$4=\"日本語 Japanese\"),IF(COUNTBLANK('基本情報(Data)'!$G$8)=0,'基本情報(Data)'!$G$8,IF(COUNTBLANK('基本情報(Data)'!$G$6)=0,'基本情報(Data)'!$G$6,\"\")), IF(COUNTBLANK('基本情報(Data)'!$G$6)=0,'基本情報(Data)'!$G$6,\"\"))","v":""},null,null,null,null,null,null,null,null,null,null,null,null,null,"主指導教員:",null,null,null,null,null,null,{"$f":"IF(COUNTBLANK('基本情報(Data)'!D20)=0,'基本情報(Data)'!D20,IF(COUNTBLANK('基本情報(Data)'!E20)=0,'基本情報(Data)'!E20,\"\"))","v":""},null,null,null,null,null,null,null,null,null,null,null,"代議員会委員:",null,null,null,null,null,null,{"$f":"IF('基本情報(Data)'!F20<>\"\",VLOOKUP('基本情報(Data)'!F20,'基本情報(Data)'!$F$29:$H$38,2,0),\"\")","v":""}]
["Ⅰ）下記の提出書類等について確認し、✓印をつけること。"]
["提　　　出　　　書　　　類",null,null,null,null,null,null,null,null,null,null,null,null,null,null,null,null,null,null,null,null,null,null,null,null,null,null,null,null,null,null,null,null,null,null,null,null,null,null,null,null,null,null,null,null,null,"提出部数",null,null,null,null,null,null,null,"申  請  者",null,null,null,null,null,"主指導教員",null,null,null,null,null,"代議員会委員",null,null,null,null,null,"備　考"]
["1.学位申請書（別紙様式第1号）　DOCTORAL  APPLICATION  FORM  (Form No.1)",null,null,null,null,null,null,null,null,null,null,null,null,null,null,null,null,null,null,null,null,null,null,null,null,null,null,null,null,null,null,null,null,null,null,null,null,null,null,null,null,null,null,null,null,null,"1部"]
["２．論文目録（別紙様式第2号）　LIST OF PUBLICATIONS　(Form No.2)",null,null,null,null,null,null,null,null,null,null,null,null,null,null,null,null,null,null,null,null,null,null,null,null,null,null,null,null,null,null,null,null,null,null,null,null,null,null,null,null,null,null,null,null,null,"3部"]
["３．第19期日本学術会議登録学術研究団体一覧・カレントコンテンツ・Web of Scienceに掲載されていることが確認できる書類",null,null,null,null,null,null,null,null,null,null,null,null,null,null,null,null,null,null,null,null,null,null,null,null,null,null,null,null,null,null,null,null,null,null,null,null,null,null,null,null,null,null,null,null,null,"1部"]
["４．基礎となる学術論文が学術雑誌等に未掲載の場合、論文が受理されたことが分かる書類（タイトルと「受理」の部分に下線をつけること）　　　　　　　　　　　　　基礎となる学術論文が投稿中の場合、論文を投稿したとわかる書類",null,null,null,null,null,null,null,null,null,null,null,null,null,null,null,null,null,null,null,null,null,null,null,null,null,null,null,null,null,null,null,null,null,null,null,null,null,null,null,null,null,null,null,null,null,"3部（原本1部、写し2部）"]
["５．学位論文（両面印刷） Dissertation",null,null,null,null,null,null,null,null,null,null,null,null,null,null,null,null,null,null,null,null,null,null,null,null,null,null,null,null,null,null,null,null,null,null,null,null,null,null,null,null,null,null,null,null,null,"1部+PDF"]
["６．学位論文要旨　和文又は英文（別紙様式第3号）　DISSERTATION SUMMARY  (Form No.3)",null,null,null,null,null,null,null,null,null,null,null,null,null,null,null,null,null,null,null,null,null,null,null,null,null,null,null,null,null,null,null,null,null,null,null,null,null,null,null,null,null,null,null,null,null,"1部+PDF"]
["７．学位論文の基礎となる学術論文　Academic Papers that Form the Basis of Dissertation",null,null,null,null,null,null,null,null,null,null,null,null,null,null,null,null,null,null,null,null,null,null,null,null,null,null,null,null,null,null,null,null,null,null,null,null,null,null,null,null,null,null,null,null,null,"1部"]
["８．既発表学術論文 Previously Presented Academic Papers",null,null,null,null,null,null,null,null,null,null,null,null,null,null,null,null,null,null,null,null,null,null,null,null,null,null,null,null,null,null,null,null,null,null,null,null,null,null,null,null,null,null,null,null,null,"1部"]
["９．履歴書（別紙様式第４号）　CURRICULUM VITAE  (Form No.4)",null,null,null,null,null,null,null,null,null,null,null,null,null,null,null,null,null,null,null,null,null,null,null,null,null,null,null,null,null,null,null,null,null,null,null,null,null,null,null,null,null,null,null,null,null,"1部",null,null,null,null,null,null,null,"5月27日までに提出済"]
["１０．承諾書（別紙様式第５号）　LETTER OF CONSENT  (Form No.5)",null,null,null,null,null,null,null,null,null,null,null,null,null,null,null,null,null,null,null,null,null,null,null,null,null,null,null,null,null,null,null,null,null,null,null,null,null,null,null,null,null,null,null,null,null,"○著者全員１部ずつ"]
["１１．機関リポジトリ登録申請書 Institutional Repository Registration Application Form",null,null,null,null,null,null,null,null,null,null,null,null,null,null,null,null,null,null,null,null,null,null,null,null,null,null,null,null,null,null,null,null,null,null,null,null,null,null,null,null,null,null,null,null,null,"1部",null,null,null,null,null,null,null,"5月27日までに提出済"]
["１２．戸籍抄本（外国人は住民票）※申請前３ヶ月以内に発行されたもの。※写しは不可。",null,null,null,null,null,null,null,null,null,null,null,null,null,null,null,null,null,null,null,null,null,null,null,null,null,null,null,null,null,null,null,null,null,null,null,null,null,null,null,null,null,null,null,null,null,"1部",null,null,null,null,null,null,null,"5月27日までに提出済"]
["１３．英文氏名及び国名届（外国人のみ）（指定用紙）  English spelling of applicant’s name and nationality",null,null,null,null,null,null,null,null,null,null,null,null,null,null,null,null,null,null,null,null,null,null,null,null,null,null,null,null,null,null,null,null,null,null,null,null,null,null,null,null,null,null,null,null,null,"1部",null,null,null,null,null,null,null,"該当者は5月27日までに提出済"]
[null,"注：","1.学位申請の提出書類の氏名は、すべて学位記に使用する氏名で統一すること。"]
[null,null,"2.学位論文の基礎となる学術論文及び既発表学術論文は，審査委員会にも使用するため審査委員（予定者）の人数分は主指導教員にて保管してください。"]
[null,null,"3. ○印は学位論文の基礎となる学術論文が共著である場合に共著者全員各人それぞれについて作成すること。"]
[null,null,"4. 英文の氏名及び国名届（外国人のみ）（指定用紙）は，学位記及び英文学位記証明書の発行に使用するものです。"]
["Ⅱ）学位論文に剽窃がないことの確認"]
["確　　認　　内　　容",null,null,null,null,null,null,null,null,null,null,null,null,null,null,null,null,null,null,null,null,null,null,null,null,null,null,null,null,null,null,null,null,null,null,null,null,null,null,null,null,null,null,null,null,null,null,null,null,null,null,null,null,null,null,"主指導教員（自署）"]
["学位論文の記述には、剽窃チェックソフトを用いた確認の結果、盗用、改ざん、捏造がないことを確認しました。"]
[]
[]
["学位論文申請関係書類チェックシート　List of documents required for degree application"]
["Participating Univ.:",null,null,null,null,null,null,null,{"$f":"IF(COUNTBLANK('基本情報(Data)'!G14)=0, VLOOKUP('基本情報(Data)'!G14,'基本情報(Data)'!$F$40:$H$41,3,0),\"\")","v":""},null,null,null,null,null,null,null,null,null,"Applicant’s name:",null,null,null,null,null,{"$f":"IF(COUNTBLANK('基本情報(Data)'!G6)=0,'基本情報(Data)'!G6,\"\")","v":""},null,null,null,null,null,null,null,null,null,null,null,null,"Primary Academic Supervisor:",null,null,null,null,null,null,null,{"$f":"IF(COUNTBLANK('基本情報(Data)'!E20)=0,'基本情報(Data)'!E20,IF(COUNTBLANK('基本情報(Data)'!D20)=0,'基本情報(Data)'!D20,\"\"))","v":""},null,null,null,null,null,null,null,null,null,null,"Member of Board of Representatives："]
["I) Please put ✓in the box when you are ready for the relevant documents."]
["Documents to be Submitted",null,null,null,null,null,null,null,null,null,null,null,null,null,null,null,null,null,null,null,null,null,null,null,null,null,null,null,null,null,null,null,null,null,null,null,null,null,null,null,null,null,null,null,null,null,"Number of copies ",null,null,null,null,null,null,null,"Applicant",null,null,null,"Primary Academic Supervisor",null,null,null,null,null,null,"Member of Board of Representatives",null,null,null,null,null,null,"Remarks"]
["1.DOCTORAL  APPLICATION  FORM  (Form No.1)",null,null,null,null,null,null,null,null,null,null,null,null,null,null,null,null,null,null,null,null,null,null,null,null,null,null,null,null,null,null,null,null,null,null,null,null,null,null,null,null,null,null,null,null,null,1]
["２．LIST OF PUBLICATIONS　(Form No.2)",null,null,null,null,null,null,null,null,null,null,null,null,null,null,null,null,null,null,null,null,null,null,null,null,null,null,null,null,null,null,null,null,null,null,null,null,null,null,null,null,null,null,null,null,null,3]
["３．Documents confirming that the organisation is listed in the List of Academic and Research Organisations Registered with the 19th Science Council of Japan, Current Contents and Web of Science.",null,null,null,null,null,null,null,null,null,null,null,null,null,null,null,null,null,null,null,null,null,null,null,null,null,null,null,null,null,null,null,null,null,null,null,null,null,null,null,null,null,null,null,null,null,1]
["４. If academic papers that form the basis of dissertation have not yet been published in a journal or other publication, documents indicating that the papers have been accepted (underline the titles and the \"accepted\" part). \nIf academic papers that form the Basis of the Dissertation have not yet been accepted, a document indicating that the papers have been submitted.",null,null,null,null,null,null,null,null,null,null,null,null,null,null,null,null,null,null,null,null,null,null,null,null,null,null,null,null,null,null,null,null,null,null,null,null,null,null,null,null,null,null,null,null,null,"3(1original, \n2copies)"]
["５．Dissertation",null,null,null,null,null,null,null,null,null,null,null,null,null,null,null,null,null,null,null,null,null,null,null,null,null,null,null,null,null,null,null,null,null,null,null,null,null,null,null,null,null,null,null,null,null,"1+PDF"]
["６．DISSERTATION SUMMARY  (Japanese or English)(Form No.3)",null,null,null,null,null,null,null,null,null,null,null,null,null,null,null,null,null,null,null,null,null,null,null,null,null,null,null,null,null,null,null,null,null,null,null,null,null,null,null,null,null,null,null,null,null,"1+PDF"]
["７．Academic Papers that Form the Basis of Dissertation",null,null,null,null,null,null,null,null,null,null,null,null,null,null,null,null,null,null,null,null,null,null,null,null,null,null,null,null,null,null,null,null,null,null,null,null,null,null,null,null,null,null,null,null,null,1]
["８．Previously Presented Academic Papers",null,null,null,null,null,null,null,null,null,null,null,null,null,null,null,null,null,null,null,null,null,null,null,null,null,null,null,null,null,null,null,null,null,null,null,null,null,null,null,null,null,null,null,null,null,1]
["９．CURRICULUM VITAE  (Form No.4)",null,null,null,null,null,null,null,null,null,null,null,null,null,null,null,null,null,null,null,null,null,null,null,null,null,null,null,null,null,null,null,null,null,null,null,null,null,null,null,null,null,null,null,null,null,1,null,null,null,null,null,null,null,"Already submitted by May. 27"]
["１０．LETTER OF CONSENT  (Form No.5) ※Each from all authors",null,null,null,null,null,null,null,null,null,null,null,null,null,null,null,null,null,null,null,null,null,null,null,null,null,null,null,null,null,null,null,null,null,null,null,null,null,null,null,null,null,null,null,null,null,"○ One copy each "]
["１１．Institutional Repository Registration Application Form",null,null,null,null,null,null,null,null,null,null,null,null,null,null,null,null,null,null,null,null,null,null,null,null,null,null,null,null,null,null,null,null,null,null,null,null,null,null,null,null,null,null,null,null,null,1,null,null,null,null,null,null,null,"Already submitted by May. 27"]
["１２．Resident Record *Issued within 3 months prior to application. *Copies are not acceptable.",null,null,null,null,null,null,null,null,null,null,null,null,null,null,null,null,null,null,null,null,null,null,null,null,null,null,null,null,null,null,null,null,null,null,null,null,null,null,null,null,null,null,null,null,null,1,null,null,null,null,null,null,null,"Already submitted by May. 27"]
["１３．English spelling of applicant’s name and nationality",null,null,null,null,null,null,null,null,null,null,null,null,null,null,null,null,null,null,null,null,null,null,null,null,null,null,null,null,null,null,null,null,null,null,null,null,null,null,null,null,null,null,null,null,null,1,null,null,null,null,null,null,null,"Already submitted by May. 27"]
["Note：",null,null,"1. All names in the doctoral application must be the same as used on the diploma."]
[null,null,null,"2. Academic Papers that form the basis of dissertation and Previously Presented Academic Papers should be kept by the primary academic supervisor for the number of member of evaluation committee (prospective), as they will also be used by the evaluation committee. \t"]
[null,null,null,"3. ‘○’ mark of documents (No.10) should be made for each of all co-authors if the academic papers that form the basis of dissertation are co-authored."]
[null,null,null,"4. English spelling of applicant’s name and country name (for international students only) ( designated form) is used to diploma and English degree certificate."]
["II) Confirmation that the Dissertation is free from plagiarism"]
["Confirmation detailss",null,null,null,null,null,null,null,null,null,null,null,null,null,null,null,null,null,null,null,null,null,null,null,null,null,null,null,null,null,null,null,null,null,null,null,null,null,null,null,null,null,null,null,null,null,null,null,null,null,null,null,null,null,null,"Primary Academic Supervisor (signature)"]
["This dissertation was checked using plagiarism-checking software and found to be free of plagiarism, falsification, or fabrication."]

{"sheet":"Form1学位申請書","index":4,"n_rows":47,"n_cols":28,"rows_kept":47,"cut":false,"hidden":false,"merged":[[11,18,11,20],[1,19,3,19],[1,20,3,21],[1,22,3,24],[1,13,3,14],[1,15,3,15],[1,16,3,16],[1,17,3,17],[1,18,3,18],[14,1,14,10],[1,2,3,4],[1,6,3,7],[1,8,3,8],[1,12,3,12],[1,11,3,11],[25,20,25,22],[19,17,19,27],[36,1,37,29],[43,2,43,6],[24,16,24,17],[0,0,0,5],[0,6,0,12],[15,1,15,10],[23,10,23,12],[1,0,3,1],[1,5,3,5],[18,10,18,13],[19,10,19,13],[7,7,7,21],[0,13,0,19],[0,20,0,25],[18,17,18,18],[1,9,3,9],[1,10,3,10],[5,0,5,14],[11,22,11,23],[1,25,3,25],[11,25,11,26],[8,7,8,21],[42,2,42,6],[24,10,24,13],[22,10,22,13],[25,10,25,14],[12,20,12,22],[12,23,12,25],[24,19,24,20],[42,23,42,24],[30,25,30,27],[20,10,20,20],[20,25,20,27],[12,26,12,28],[25,17,25,19],[44,2,44,6],[45,2,45,6],[46,2,46,6],[26,10,26,20],[40,2,40,28],[34,1,34,29],[35,1,35,29],[29,17,29,27],[29,12,29,14],[30,12,30,14],[28,17,28,18],[45,23,45,24],[46,23,46,24],[43,23,43,24],[44,23,44,24]]}
["受 付 番 号",null,null,null,null,null,"受 付 年 月 日",null,null,null,null,null,null,"受 理 年 月 日",null,null,null,null,null,null,"報 告 番 号"]
["甲第",null,null,null,null,"号",null,null,"年",null,"月",null,"日",null,null,"年",null,"月",null,"日","甲第",null,null,null,null,"号"]
[]
[]
[]
["別紙様式第１号（第4条関係）Form No.1"]
[]
[null,null,null,null,null,null,null,"学　　位　　申　　請　　書"]
[null,null,null,null,null,null,null,"DOCTRAL APPLICATION FORM"]
[]
[]
[null,null,null,null,null,null,null,null,null,null,null,null,null,null,null,null,null,null,{"$f":"IF('基本情報(Data)'!D4=\"\",\"\",YEAR('基本情報(Data)'!D4))","v":""},null,null,"年",{"$f":"IF('基本情報(Data)'!D4=\"\",\"\",MONTH('基本情報(Data)'!D4))","v":""},null,"月",{"$f":"IF('基本情報(Data)'!D4=\"\",\"\",DAY('基本情報(Data)'!D4))","v":""},null,"日"]
[null,null,null,null,null,null,null,null,null,null,null,null,null,null,null,null,null,null,null,null,"year",null,null,"month",null,null,"day"]
[]
[null,"岐阜大学長殿"]
[null,"To the President of Gifu University"]
[]
[]
[null,null,null,null,null,null,null,null,null,null,"主指導教員",null,null,null,null,null,null,"（自署）"]
[null,null,null,null,null,null,null,null,null,null,"氏　　　名"]
[null,null,null,null,null,null,null,null,null,null,"Name of Primary Academic Supervisor",null,null,null,null,null,null,null,null,null,null,null,null,null,null,"Signature"]
[]
[null,null,null,null,null,null,null,null,null,null,"申請者"]
[null,null,null,null,null,null,null,null,null,null,"Applicant"]
[null,null,null,null,null,null,null,null,null,null,"入学時期",null,null,null,null,null,{"$f":"IF('基本情報(Data)'!E4<>\"\",YEAR('基本情報(Data)'!E4),\"\")","v":""},null,"年",{"$f":"IF('基本情報(Data)'!E4<>\"\",MONTH('基本情報(Data)'!E4),\"\")","v":""},null,"月入学"]
[null,null,null,null,null,null,null,null,null,null,"Date of Admission ",null,null,null,null,null,null,"year",null,null,"month"]
[null,null,null,null,null,null,null,null,null,null,"岐阜大学大学院連合農学研究科"]
[null,null,null,null,null,null,null,null,null,null,"The United Graduate School of Agricultural Science, Gifu University"]
[null,null,null,null,null,null,null,null,null,null,null,null,null,null,null,null,null,"（自署）"]
[null,null,null,null,null,null,null,null,null,null,null,null,"氏　名"]
[null,null,null,null,null,null,null,null,null,null,null,null,"Name",null,null,null,null,null,null,null,null,null,null,null,null,"Signature"]
[]
[]
[]
[null,"　岐阜大学大学院連合農学研究科における博士（農学）の学位の取扱細則第4条の"]
[null,"規定に基づき，下記の通り関係書類を添え学位の授与を申請いたします。"]
[null,"　Herewith, I apply for the doctoral degree, with providing the following documents followed after the details of regulations for handling Doctoral Degrees Article 4."]
[]
[]
[]
[null,null,"記  Descriptions"]
[]
[null,null,"論文目録",null,null,null,null,null,"List of Publication",null,null,null,null,null,null,null,null,null,null,null,null,null,null,null,null,"部",null,"□"]
[null,null,"学位論文",null,null,null,null,null,"Dessertation",null,null,null,null,null,null,null,null,null,null,null,null,null,null,null,null,"部",null,"□"]
[null,null,"学位論文要旨",null,null,null,null,null,"Dissertation Summary",null,null,null,null,null,null,null,null,null,null,null,null,null,null,null,null,"部",null,"□"]
[null,null,"履歴書",null,null,null,null,null,"Curriculum Vitae",null,null,null,null,null,null,null,null,null,null,null,null,null,null,null,null,"部",null,"□"]
[null,null,"戸籍抄本",null,null,null,null,null,"（又は住民票　Resident Record）",null,null,null,null,null,null,null,null,null,null,null,null,null,null,null,null,"部",null,"□"]

{"sheet":"Form2論文目録","index":5,"n_rows":35,"n_cols":18,"rows_kept":35,"cut":false,"hidden":false,"merged":[[21,2,21,30],[22,2,22,30],[15,0,15,1],[16,0,16,1],[17,0,17,1],[18,0,18,1],[19,0,19,1],[20,0,20,1],[21,0,21,1],[22,0,22,1],[15,2,15,30],[18,2,18,30],[19,2,19,30],[20,2,20,30],[10,0,10,4],[9,0,9,4],[10,5,10,30],[16,2,16,30],[17,2,17,30],[13,0,13,16],[9,5,9,30],[8,2,8,30],[7,1,7,11],[5,14,5,16],[6,14,6,16],[0,0,0,14],[2,8,2,22],[3,8,3,22],[5,17,5,30],[24,0,24,16],[26,0,26,1],[26,2,26,30],[27,0,27,1],[27,2,27,30],[28,0,28,1],[28,2,28,30],[29,0,29,1],[29,2,29,30],[30,0,30,1],[30,2,30,30],[34,0,34,1],[34,2,34,30],[31,0,31,1],[31,2,31,30],[32,0,32,1],[32,2,32,30],[33,0,33,1],[33,2,33,30]]}
["別紙様式第２号（第4条関係）Form No.2"]
[]
[null,null,null,null,null,null,null,null,"論　文　目　録"]
[null,null,null,null,null,null,null,null,"LIST OF PUBLICATION"]
[]
[null,null,null,null,null,null,null,null,null,null,null,null,null,null,"氏　名",null,null,{"$f":"IF(OR('基本情報(Data)'!$F$4=\"英語 English/学位記氏名漢字 kanji\",'基本情報(Data)'!$F$4=\"日本語 Japanese\"),IF(COUNTBLANK('基本情報(Data)'!$G$8)=0,'基本情報(Data)'!$G$8,IF(COUNTBLANK('基本情報(Data)'!$G$6)=0,'基本情報(Data)'!$G$6,\"\")), IF(COUNTBLANK('基本情報(Data)'!$G$6)=0,'基本情報(Data)'!$G$6,\"\"))","v":""}]
[null,null,null,null,null,null,null,null,null,null,null,null,null,null,"Name"]
[null,"学　位　論　文　 Disseartation"]
[]
["題　　目"]
["Title of Dissertation"]
[]
["学位論文の基礎となる学術論文"]
["Academic Papers that Form the Basis of Dissertation"]
[]
[{"$f":"IF(COUNTBLANK(C16)=0,\"1)\",\"\")","v":""}]
[{"$f":"IF(COUNTBLANK(C17)=0,\"2)\",\"\")","v":""}]
[{"$f":"IF(COUNTBLANK(C18)=0,\"3)\",\"\")","v":""}]
[{"$f":"IF(COUNTBLANK(C19)=0,\"4)\",\"\")","v":""}]
[{"$f":"IF(COUNTBLANK(C20)=0,\"5)\",\"\")","v":""}]
[{"$f":"IF(COUNTBLANK(C21)=0,\"6)\",\"\")","v":""}]
[{"$f":"IF(COUNTBLANK(C22)=0,\"7)\",\"\")","v":""}]
[{"$f":"IF(COUNTBLANK(C23)=0,\"8)\",\"\")","v":""}]
["既発表学術論文"]
["Previously Presented Academic Papers"]
[]
[{"$f":"IF(COUNTBLANK(C27)=0,\"1)\",\"\")","v":"1)"},null,"岐阜花子，柳戸一郎，駿河次郎，位山かおり：位山演習林におけるN2･リン排出原単位の推定，農林水産学会論文集，81(2), 193-199，2013． "]
[{"$f":"IF(COUNTBLANK(C28)=0,\"2)\",\"\")","v":""}]
[{"$f":"IF(COUNTBLANK(C29)=0,\"3)\",\"\")","v":""}]
[{"$f":"IF(COUNTBLANK(C30)=0,\"4)\",\"\")","v":""}]
[{"$f":"IF(COUNTBLANK(C31)=0,\"5)\",\"\")","v":""}]
[{"$f":"IF(COUNTBLANK(C32)=0,\"6)\",\"\")","v":""}]
[{"$f":"IF(COUNTBLANK(C33)=0,\"7)\",\"\")","v":""}]
[{"$f":"IF(COUNTBLANK(C34)=0,\"8)\",\"\")","v":""}]
[{"$f":"IF(COUNTBLANK(C35)=0,\"9)\",\"\")","v":""}]

{"sheet":"Form3学位論文要旨","index":6,"n_rows":102,"n_cols":39,"rows_kept":102,"cut":false,"hidden":false,"merged":[[8,31,8,35],[8,36,8,61],[101,0,155,30],[101,31,155,61],[46,0,100,30],[46,31,100,61],[9,31,9,35],[9,36,9,61],[12,0,45,30],[11,31,11,43],[12,31,45,61],[11,0,11,12],[8,0,8,4],[8,5,8,30],[9,0,9,4],[9,5,9,30],[0,31,0,45],[2,38,2,52],[0,0,0,14],[2,7,2,21],[3,7,3,21],[5,0,5,4],[6,0,6,5],[5,6,5,30],[3,38,3,52],[5,31,5,35],[5,37,5,61],[6,31,6,36]]}
["別紙様式第３号（第4条関係）Form No.3",null,null,null,null,null,null,null,null,null,null,null,null,null,null,null,null,null,null,null,null,null,null,null,null,null,null,null,null,null,null,"別紙様式第３号（第4条関係）Form No.3"]
[]
[null,null,null,null,null,null,null,"学　位　論　文　要　旨",null,null,null,null,null,null,null,null,null,null,null,null,null,null,null,null,null,null,null,null,null,null,null,null,null,null,null,null,null,null,"学　位　論　文　要　旨"]
[null,null,null,null,null,null,null,"DISSERTATION SUMMARY",null,null,null,null,null,null,null,null,null,null,null,null,null,null,null,null,null,null,null,null,null,null,null,null,null,null,null,null,null,null,"DISSERTATION SUMMARY"]
[]
["氏　　　名",null,null,null,null,null,{"$f":"IF(COUNTBLANK('基本情報(Data)'!G8)=0,'基本情報(Data)'!G8, '基本情報(Data)'!G6)","v":""},null,null,null,null,null,null,null,null,null,null,null,null,null,null,null,null,null,null,null,null,null,null,null,null,"氏　　　名",null,null,null,null,null,{"$f":"IF(COUNTBLANK('基本情報(Data)'!G6)=0,'基本情報(Data)'!G6,\"\")","v":""}]
["Name",null,null,null,null,null,null,null,null,null,null,null,null,null,null,null,null,null,null,null,null,null,null,null,null,null,null,null,null,null,null,"Name"]
[]
["題　　　目",null,null,null,null,null,null,null,null,null,null,null,null,null,null,null,null,null,null,null,null,null,null,null,null,null,null,null,null,null,null,"題　　　目"]
["Title of Dissertation",null,null,null,null,null,null,null,null,null,null,null,null,null,null,null,null,null,null,null,null,null,null,null,null,null,null,null,null,null,null,"Title of Dissertation"]
[]
["学位論文要旨(Dissertation Summary)",null,null,null,null,null,null,null,null,null,null,null,null,null,null,null,null,null,null,null,null,null,null,null,null,null,null,null,null,null,null,"学位論文要旨(Dissertation Summary)"]
["学位論文の要旨を日本語（2000字程度）で記述する．",null,null,null,null,null,null,null,null,null,null,null,null,null,null,null,null,null,null,null,null,null,null,null,null,null,null,null,null,null,null,"English Dissertation summary should be written in about 1,200 words."]
[]
[]
[]
[]
[]
[]
[]
[]
[]
[]
[]
[]
[]
[]
[]
[]
[]
[]
[]
[]
[]
[]
[]
[]
[]
[]
[]
[]
[]
[]
[]
[]
[]
["学位論文の要旨を日本語（2000字程度）で記述する．2ページ目",null,null,null,null,null,null,null,null,null,null,null,null,null,null,null,null,null,null,null,null,null,null,null,null,null,null,null,null,null,null,"English Dissertation summary should be written in about 1,200 words.　2nd Page"]
[]
[]
[]
[]
[]
[]
[]
[]
[]
[]
[]
[]
[]
[]
[]
[]
[]
[]
[]
[]
[]
[]
[]
[]
[]
[]
[]
[]
[]
[]
[]
[]
[]
[]
[]
[]
[]
[]
[]
[]
[]
[]
[]
[]
[]
[]
[]
[]
[]
[]
[]
[]
[]
[]
["学位論文の要旨を日本語（2000字程度）で記述する．3ページ目",null,null,null,null,null,null,null,null,null,null,null,null,null,null,null,null,null,null,null,null,null,null,null,null,null,null,null,null,null,null,"English Dissertation summary should be written in about 1,200 words.　3rd Page"]

{"sheet":"Form4履歴書","index":7,"n_rows":56,"n_cols":27,"rows_kept":56,"cut":false,"hidden":false,"merged":[[11,19,11,30],[60,9,60,32],[58,9,58,32],[56,9,56,32],[57,9,57,32],[55,9,55,32],[54,9,54,32],[53,0,53,32],[49,9,49,32],[47,9,47,32],[48,9,48,32],[50,9,50,32],[51,9,51,32],[52,9,52,32],[59,9,59,32],[59,0,59,8],[54,0,54,8],[55,0,55,8],[56,0,56,8],[57,0,57,8],[58,0,58,8],[60,0,60,8],[50,0,50,8],[51,0,51,8],[52,0,52,8],[46,9,46,32],[45,9,45,32],[34,9,34,32],[35,9,35,32],[36,9,36,32],[37,9,37,32],[38,9,38,32],[44,0,44,32],[39,9,39,32],[40,9,40,32],[41,9,41,32],[42,9,42,32],[43,9,43,32],[40,0,40,8],[41,0,41,8],[42,0,42,8],[43,0,43,8],[45,0,45,8],[46,0,46,8],[47,0,47,8],[48,0,48,8],[49,0,49,8],[22,9,22,32],[23,9,23,32],[24,9,24,32],[25,9,25,32],[26,9,26,32],[27,0,27,32],[28,9,28,32],[13,0,13,32],[14,0,14,32],[15,9,15,32],[16,9,16,32],[17,9,17,32],[18,9,18,32],[19,9,19,32],[20,9,20,32],[21,9,21,32],[15,0,15,8],[16,0,16,8],[17,0,17,8],[18,0,18,8],[19,0,19,8],[20,0,20,8],[21,0,21,8],[22,0,22,8],[0,0,0,21],[29,9,29,32],[30,9,30,32],[31,9,31,32],[32,9,32,32],[33,0,33,32],[7,13,7,15],[7,17,7,18],[7,20,7,21],[7,1,7,7],[9,1,9,7],[10,1,10,7],[11,1,11,7],[12,1,12,7],[8,1,8,7],[11,15,11,18],[11,10,11,14],[12,9,12,32],[8,15,8,17],[8,18,8,20],[8,21,8,23],[9,11,10,29],[23,0,23,8],[24,0,24,8],[3,1,3,7],[4,1,4,7],[5,1,5,7],[6,1,6,7],[3,26,4,32],[5,26,6,32],[4,9,6,25],[3,9,3,25],[2,0,2,32],[29,0,29,8],[30,0,30,8],[31,0,31,8],[25,0,25,8],[26,0,26,8],[39,0,39,8],[34,0,34,8],[35,0,35,8],[36,0,36,8],[37,0,37,8],[38,0,38,8],[32,0,32,8],[28,0,28,8]]}
["別紙様式第４号（第４条，第６条，第７条関係）　Form No.4"]
[]
["履　　　歴　　　書　　CURRICULUM VITAE"]
[null,"フリガナ",null,null,null,null,null,null,null,{"$f":"IF(COUNTBLANK('基本情報(Data)'!G10)=0,'基本情報(Data)'!G10,\"\")","v":""},null,null,null,null,null,null,null,null,null,null,null,null,null,null,null,null,{"$f":"IF('基本情報(Data)'!D12=\"男 Male\", \"男\", IF('基本情報(Data)'!D12=\"女 Female\", \"女\", IF('基本情報(Data)'!D12=\"その他 Other\", \"その他\",\"\")))","v":""}]
[null,"氏名",null,null,null,null,null,null,null,{"$f":"IF(OR('基本情報(Data)'!$F$4=\"英語 English/学位記氏名漢字 kanji\",'基本情報(Data)'!$F$4=\"日本語 Japanese\"),IF(COUNTBLANK('基本情報(Data)'!$G$8)=0,'基本情報(Data)'!$G$8,IF(COUNTBLANK('基本情報(Data)'!$G$6)=0,'基本情報(Data)'!$G$6,\"\")), IF(COUNTBLANK('基本情報(Data)'!$G$6)=0,'基本情報(Data)'!$G$6,\"\"))","v":""}]
[null,"Name (in Katakana)",null,null,null,null,null,null,null,null,null,null,null,null,null,null,null,null,null,null,null,null,null,null,null,null,{"$f":"IF('基本情報(Data)'!D12=\"男 Male\", \"Male\", IF('基本情報(Data)'!D12=\"女 Female\", \"Female\",IF('基本情報(Data)'!D12=\"その他 Other\", \"Other\",\"\")))","v":""}]
[null,"Name (in English)"]
[null,"生年月日",null,null,null,null,null,null,null,null,null,null,null,{"$f":"IF('基本情報(Data)'!E12=\"\",\"\",YEAR('基本情報(Data)'!E12))","v":""},null,null,"年",{"$f":"IF('基本情報(Data)'!E12=\"\",\"\",MONTH('基本情報(Data)'!E12))","v":""},null,"月",{"$f":"IF('基本情報(Data)'!E12=\"\",\"\",DAY('基本情報(Data)'!E12))","v":""},null,"日","生"]
[null,"Date of birth",null,null,null,null,null,null,null,null,null,null,null,null,null,"year",null,null,"month",null,null,"day"]
[null,"本籍",null,null,null,null,null,null,null,null,null,{"$f":"IF('基本情報(Data)'!G12<>\"\",'基本情報(Data)'!G12, IF('基本情報(Data)'!F12=\"\",\"\",'基本情報(Data)'!F12))","v":""}]
[null,"Country name"]
[null,"現住所",null,null,null,null,null,null,null,"〒",{"$f":"IF('基本情報(Data)'!F16=\"\",\"\",'基本情報(Data)'!F16)","v":""},null,null,null,null,"電話 TEL ",null,null,null,{"$f":"IF('基本情報(Data)'!E16=\"\",\"\",'基本情報(Data)'!E16)","v":""}]
[null,"Present address",null,null,null,null,null,null,null,{"$f":"IF('基本情報(Data)'!G16<>\"\",'基本情報(Data)'!G16,\"\")","v":""}]
["学　歴　（高等学校卒業以後の学歴を年代順に記入すること。）"]
["Academic background    (Start from senior high school level)"]
["〇〇〇〇年○月○日",null,null,null,null,null,null,null,null,"○○高等学校卒業\nGraduated from \t\t\t High School"]
["〇〇〇〇年○月○日",null,null,null,null,null,null,null,null,"○○大学○○学部○○学科入学\nAdmitted to the \t　 course of the Dept. of \t, \t University\n　同上卒業"]
["〇〇〇〇年○月○日",null,null,null,null,null,null,null,null,"Graduated from same\n○○大学大学院○○研究科修士課程（○○専攻）入学\nAdmitted to the master’s course (field of specialty: \t\t), \t\t University Graduate School"]
["〇〇〇〇年○月○日",null,null,null,null,null,null,null,null,"同上修了\nCompleted same course"]
["〇〇〇〇年○月○日",null,null,null,null,null,null,null,null,"岐阜大学大学院連合農学研究科博士課程（○○専攻）入学\nAdmitted to doctoral course (field of specialty: \t\t), The United Graduate School of Agricultural Science, Gifu University"]
[null,null,null,null,null,null,null,null,null,"現在に至る　　Continued to present"]
[]
[]
[]
[]
[]
[]
["研　究　歴（研究期間・研究内容等を年代順に記入すること。） \nResearch history"]
["〇〇〇〇年○月○日",null,null,null,null,null,null,null,null,"〇〇研究所研究員（～〇〇年〇〇月〇〇日まで，○○に関する研究に従事）Researcher at ○○ Institute (until Oct.1, 2000, Engaged in research about chemical reaction of ammonia)"]
[]
[]
[]
[]
["職　　　　　　　　歴 　\nOccupational history"]
[]
[]
[]
[]
[]
[]
[]
[]
[]
[]
["学会及び社会における活動状況\nColumn on activities in academic societies or the community"]
["〇〇〇〇年○月○日",null,null,null,null,null,null,null,null,"○○○学会会員（現在に至る。）\nAcademic society member (to present)"]
["〇〇〇〇年○月○日",null,null,null,null,null,null,null,null,"第○○回○○世界大会に出席・発表（ホノルル）\nAttended and presented at the Nth \t\t International Conference (Honolulu)"]
[]
[]
[]
[]
[]
[]
["賞　　　　　　　　罰  \nSpecial achievements"]
["〇〇〇〇年○月○日",null,null,null,null,null,null,null,null,"〇〇学会学会賞\nScientiic award at 〇〇 Society"]
["〇〇〇〇年○月○日",null,null,null,null,null,null,null,null,"連合農学研究科長表彰\nDean's award at UGSAS, Gifu University"]

{"sheet":"Form5承諾書","index":8,"n_rows":281,"n_cols":33,"rows_kept":281,"cut":false,"hidden":false,"merged":[[18,17,18,26],[65,17,65,26],[112,17,112,26],[159,17,159,26],[206,17,206,26],[253,17,253,26],[146,23,146,25],[193,23,193,25],[240,23,240,25],[252,17,252,21],[252,22,252,34],[246,0,246,25],[249,17,249,21],[249,22,249,34],[250,17,250,25],[250,32,250,34],[228,0,228,35],[229,0,229,35],[230,0,230,35],[224,0,224,35],[225,0,225,35],[226,0,226,35],[231,0,231,35],[232,0,232,35],[266,0,266,4],[267,0,267,4],[267,12,267,14],[267,16,267,18],[263,31,263,34],[264,30,264,34],[268,14,268,16],[268,18,268,20],[263,0,263,8],[263,9,263,30],[265,0,265,11],[265,20,265,29],[278,0,278,35],[279,0,279,35],[280,0,280,35],[270,0,270,4],[271,0,271,35],[272,0,272,35],[273,0,273,35],[270,16,270,35],[270,5,270,15],[274,0,274,14],[274,15,274,28],[274,29,274,35],[275,0,275,35],[276,0,276,35],[277,0,277,35],[255,0,255,4],[258,5,258,33],[260,0,260,4],[260,5,260,33],[247,0,247,35],[235,0,235,21],[237,0,237,35],[238,0,238,35],[240,27,240,28],[240,30,240,31],[241,25,241,27],[241,28,241,30],[241,31,241,33],[233,0,233,35],[221,14,221,16],[221,18,221,20],[223,0,223,4],[223,5,223,15],[223,16,223,35],[227,0,227,14],[227,15,227,28],[227,29,227,35],[216,0,216,8],[216,9,216,30],[218,0,218,11],[218,20,218,29],[219,0,219,4],[216,31,216,34],[217,30,217,34],[220,0,220,4],[220,12,220,14],[220,16,220,18],[211,5,211,33],[213,0,213,4],[213,5,213,33],[202,17,202,21],[202,22,202,34],[203,17,203,25],[203,32,203,34],[205,17,205,21],[205,22,205,34],[180,0,180,14],[180,15,180,28],[180,29,180,35],[177,0,177,35],[178,0,178,35],[179,0,179,35],[194,31,194,33],[199,0,199,25],[208,0,208,4],[200,0,200,35],[194,25,194,27],[194,28,194,30],[172,0,172,4],[173,0,173,4],[173,12,173,14],[173,16,173,18],[147,25,147,27],[147,28,147,30],[174,14,174,16],[174,18,174,20],[176,0,176,4],[166,0,166,4],[166,5,166,33],[158,22,158,34],[158,17,158,21],[155,17,155,21],[155,22,155,34],[169,0,169,8],[169,9,169,30],[171,0,171,11],[171,20,171,29],[176,5,176,15],[176,16,176,35],[156,32,156,34],[147,31,147,33],[152,0,152,25],[29,30,29,34],[25,0,25,4],[0,0,0,21],[20,0,20,4],[14,22,14,34],[17,22,17,34],[11,0,11,25],[5,27,5,28],[5,30,5,31],[6,25,6,27],[6,28,6,30],[6,31,6,33],[14,17,14,21],[17,17,17,21],[15,17,15,25],[23,5,23,33],[25,5,25,33],[2,0,2,35],[3,0,3,35],[28,0,28,8],[28,31,28,34],[12,0,12,35],[5,23,5,25],[15,31,15,34],[30,0,30,11],[39,15,39,28],[35,0,35,4],[40,0,40,35],[41,0,41,35],[31,0,31,4],[32,0,32,4],[32,12,32,14],[32,16,32,18],[30,20,30,29],[39,0,39,14],[39,29,39,35],[37,0,37,35],[36,0,36,35],[38,0,38,35],[35,5,35,15],[35,16,35,35],[50,0,50,35],[52,27,52,28],[52,30,52,31],[53,25,53,27],[53,28,53,30],[53,31,53,33],[52,23,52,25],[33,14,33,16],[33,18,33,20],[87,0,87,35],[88,0,88,35],[89,0,89,35],[90,0,90,35],[124,0,124,11],[124,20,124,29],[125,0,125,4],[126,0,126,4],[126,12,126,14],[126,16,126,18],[94,0,94,21],[122,9,122,30],[123,31,123,33],[122,31,122,34],[117,5,117,33],[100,31,100,33],[99,23,99,25],[105,0,105,25],[100,25,100,27],[100,28,100,30],[75,0,75,8],[75,9,75,30],[67,0,67,4],[72,0,72,4],[70,5,70,33],[72,5,72,33],[75,31,75,34],[76,30,76,34],[170,30,170,34],[129,5,129,15],[129,16,129,35],[133,0,133,14],[133,15,133,28],[133,29,133,35],[134,0,134,35],[135,0,135,35],[136,0,136,35],[137,0,137,35],[138,0,138,35],[139,0,139,35],[141,0,141,21],[143,0,143,35],[144,0,144,35],[153,0,153,35],[156,17,156,25],[161,0,161,4],[164,5,164,33],[111,17,111,21],[111,22,111,34],[130,0,130,35],[131,0,131,35],[132,0,132,35],[82,0,82,4],[114,0,114,4],[119,0,119,4],[84,0,84,35],[85,0,85,35],[91,0,91,35],[92,0,92,35],[96,0,96,35],[97,0,97,35],[83,0,83,35],[127,14,127,16],[127,18,127,20],[106,0,106,35],[86,0,86,14],[86,15,86,28],[86,29,86,35],[80,18,80,20],[193,27,193,28],[193,30,193,31],[181,0,181,35],[182,0,182,35],[183,0,183,35],[184,0,184,35],[185,0,185,35],[186,0,186,35],[188,0,188,21],[190,0,190,35],[191,0,191,35],[146,27,146,28],[146,30,146,31],[129,0,129,4],[108,17,108,21],[108,22,108,34],[109,17,109,25],[109,32,109,34],[169,31,169,34],[99,27,99,28],[99,30,99,31],[119,5,119,33],[122,0,122,8],[77,0,77,11],[77,20,77,29],[78,0,78,4],[79,0,79,4],[79,12,79,14],[79,16,79,18],[82,5,82,15],[82,16,82,35],[28,9,28,30],[80,14,80,16],[59,0,59,35],[61,17,61,21],[61,22,61,34],[62,17,62,25],[62,32,62,34],[64,17,64,21],[64,22,64,34],[42,0,42,35],[43,0,43,35],[44,0,44,35],[45,0,45,35],[58,0,58,25],[47,0,47,21],[49,0,49,35]]}
["別紙様式第5号（第４条，第６条関係）　Form No.5"]
[]
["承　　諾　　書"]
["LETTER OF CONSENT"]
[]
[null,null,null,null,null,null,null,null,null,null,null,null,null,null,null,null,null,null,null,null,null,null,null,null,null,null,"年",null,null,"月",null,null,"日"]
[null,null,null,null,null,null,null,null,null,null,null,null,null,null,null,null,null,null,null,null,null,null,null,null,null,"year",null,null,"month",null,null,"day"]
[]
[]
[]
[]
["岐阜大学大学院連合農学研究科長　殿"]
["To the Dean of the United Graduate School of Agricultural Science, Gifu University"]
[]
[null,null,null,null,null,null,null,null,null,null,null,null,null,null,null,null,null,"共著者氏名"]
[null,null,null,null,null,null,null,null,null,null,null,null,null,null,null,null,null,"Co-Author's Name",null,null,null,null,null,null,null,null,null,null,null,null,null,"Signature"]
[]
[null,null,null,null,null,null,null,null,null,null,null,null,null,null,null,null,null,"所属・職名"]
[null,null,null,null,null,null,null,null,null,null,null,null,null,null,null,null,null,"Affiliation and Position"]
[]
["論文題目"]
["Title of Paper"]
[]
[null,null,null,null,null,""]
[]
["著者名",null,null,null,null,{"$f":"IF('論文情報(Papers)'!C13=\"\",\"\",'論文情報(Papers)'!C13)","v":""}]
["Author(s) name"]
[]
["学術雑誌名（学会誌）",null,null,null,null,null,null,null,null,{"$f":"IF('論文情報(Papers)'!C15=\"\",\"\",'論文情報(Papers)'!C15)","v":""},null,null,null,null,null,null,null,null,null,null,null,null,null,null,null,null,null,null,null,null,null,{"$f":"IF($AE30=\"published\",\"に発表\", IF($AE30=\"in press\",\"に印刷中\", IF($AE30=\"submitted\",\"に投稿中\",\"\")))","v":""}]
["Name of Journal",null,null,null,null,null,null,null,null,null,null,null,null,null,null,null,null,null,null,null,null,null,null,null,null,null,null,null,null,null,{"$f":"IF('論文情報(Papers)'!V15=\"published/掲載済\", \"published\",IF('論文情報(Papers)'!V15=\"in press/印刷中\", \"in press\",IF('論文情報(Papers)'!V15=\"submitted/投稿中\", \"submitted\",\"－\")))","v":"－"}]
["（巻･号･頁）(Vol., No., Page)",null,null,null,null,null,null,null,null,null,null,null,null,null,null,null,null,null,null,"（",{"$f":"IF('論文情報(Papers)'!D19=\"\",\"\",'論文情報(Papers)'!D19)","v":""},null,null,null,null,null,null,null,null,null,"）"]
[]
["発行年月",null,null,null,null,null,null,null,null,null,null,null,{"$f":"IF('論文情報(Papers)'!U19=\"\",\"\",'論文情報(Papers)'!U19)","v":""},null,null,"年",{"$f":"IF('論文情報(Papers)'!Y19=\"\",\"\",'論文情報(Papers)'!Y19)","v":""},null,null,"月"]
["Date published",null,null,null,null,null,null,null,null,null,null,null,null,null,"year",null,null,null,"month"]
[]
["上記論文を",null,null,null,null,{"$f":"IF(COUNTBLANK('基本情報(Data)'!$G$8)=0,'基本情報(Data)'!$G$8,IF(COUNTBLANK('基本情報(Data)'!$G$6)=0,'基本情報(Data)'!$G$6,\"\"))","v":""},null,null,null,null,null,null,null,null,null,null,"氏が，岐阜大学大学院連合農学研究科へ博士（農学）の"]
["学位申請論文として提出することを承諾します。"]
["　なお，当該論文は，学位論文の基礎となる学術論文として過去において使用せず，また，将来に"]
["おいても使用しません。"]
["　I hereby give my consent for Mr./Ms. ",null,null,null,null,null,null,null,null,null,null,null,null,null,null,{"$f":"IF('基本情報(Data)'!$G$6=\"\",\"\",'基本情報(Data)'!$G$6)","v":""},null,null,null,null,null,null,null,null,null,null,null,null,null," to submit the"]
["above-mentioned paper in support of his/her doctoral application (in agriculture) at The United "]
["Graduate School of Agricultural Science, Gifu University. "]
["　This paper has not been used in the past as an academic paper that forms the basis of "]
["dissertation, nor will it be so used in the future."]
["　投稿中，印刷中，発表と進んでもこの書類に効力を持ちます。"]
["　This document is valid even if it is being submitted, in press, or published."]
[]
["別紙様式第5号（第４条，第６条関係）　Form No.5"]
[]
["承　　諾　　書"]
["LETTER OF CONSENT"]
[]
[null,null,null,null,null,null,null,null,null,null,null,null,null,null,null,null,null,null,null,null,null,null,null,null,null,null,"年",null,null,"月",null,null,"日"]
[null,null,null,null,null,null,null,null,null,null,null,null,null,null,null,null,null,null,null,null,null,null,null,null,null,"year",null,null,"month",null,null,"day"]
[]
[]
[]
[]
["岐阜大学大学院連合農学研究科長　殿"]
["To the Dean of the United Graduate School of Agricultural Science, Gifu University"]
[]
[null,null,null,null,null,null,null,null,null,null,null,null,null,null,null,null,null,"共著者氏名"]
[null,null,null,null,null,null,null,null,null,null,null,null,null,null,null,null,null,"Co-Author's Name",null,null,null,null,null,null,null,null,null,null,null,null,null,null,"Signature"]
[]
[null,null,null,null,null,null,null,null,null,null,null,null,null,null,null,null,null,"所属・職名"]
[null,null,null,null,null,null,null,null,null,null,null,null,null,null,null,null,null,"Affiliation and Position"]
[]
["論文題目"]
["Title of Paper"]
[]
[null,null,null,null,null,""]
[]
["著者名",null,null,null,null,{"$f":"IF('論文情報(Papers)'!C26=\"\",\"\",'論文情報(Papers)'!C26)","v":""}]
["Author(s) name"]
[]
["学術雑誌名（学会誌）",null,null,null,null,null,null,null,null,{"$f":"IF('論文情報(Papers)'!C28=\"\",\"\",'論文情報(Papers)'!C28)","v":""},null,null,null,null,null,null,null,null,null,null,null,null,null,null,null,null,null,null,null,null,null,{"$f":"IF($AE77=\"published\",\"に発表\", IF($AF28=\"in press\",\"に印刷中\", IF($AF28=\"submitted\",\"に投稿中\",\"\")))","v":""}]
["Name of Journal",null,null,null,null,null,null,null,null,null,null,null,null,null,null,null,null,null,null,null,null,null,null,null,null,null,null,null,null,null,{"$f":"IF('論文情報(Papers)'!V28=\"published/掲載済\", \"published\",IF('論文情報(Papers)'!V28=\"in press/印刷中\", \"in press\",IF('論文情報(Papers)'!V28=\"submitted/投稿中\", \"submitted\",\"－\")))","v":"－"}]
["（巻･号･頁）(Vol., No., Page)",null,null,null,null,null,null,null,null,null,null,null,null,null,null,null,null,null,null,"（",{"$f":"IF('論文情報(Papers)'!D32=\"\",\"\",'論文情報(Papers)'!D32)","v":""},null,null,null,null,null,null,null,null,null,"）"]
[]
["発行年月",null,null,null,null,null,null,null,null,null,null,null,{"$f":"IF('論文情報(Papers)'!U32=\"\",\"\",'論文情報(Papers)'!U32)","v":""},null,null,"年",{"$f":"IF('論文情報(Papers)'!Y32=\"\",\"\",'論文情報(Papers)'!Y32)","v":""},null,null,"月"]
["Date published",null,null,null,null,null,null,null,null,null,null,null,null,null,"year",null,null,null,"month"]
[]
["上記論文を",null,null,null,null,{"$f":"IF(COUNTBLANK('基本情報(Data)'!$G$8)=0,'基本情報(Data)'!$G$8,IF(COUNTBLANK('基本情報(Data)'!$G$6)=0,'基本情報(Data)'!$G$6,\"\"))","v":""},null,null,null,null,null,null,null,null,null,null,"氏が，岐阜大学大学院連合農学研究科へ博士（農学）の"]
["学位申請論文として提出することを承諾します。"]
["　なお，当該論文は，学位論文の基礎となる学術論文として過去において使用せず，また，将来に"]
["おいても使用しません。"]
["　I hereby give my consent for Mr./Ms. ",null,null,null,null,null,null,null,null,null,null,null,null,null,null,{"$f":"IF('基本情報(Data)'!$G$6=\"\",\"\",'基本情報(Data)'!$G$6)","v":""},null,null,null,null,null,null,null,null,null,null,null,null,null," to submit the"]
["above-mentioned paper in support of his/her doctoral application (in agriculture) at The United "]
["Graduate School of Agricultural Science, Gifu University. "]
["　This paper has not been used in the past as an academic paper that forms the basis of "]
["dissertation, nor will it be so used in the future."]
["　投稿中，印刷中，発表と進んでもこの書類に効力を持ちます。"]
["　This document is valid even if it is being submitted, in press, or published."]
[]
["別紙様式第5号（第４条，第６条関係）　Form No.5"]
[]
["承　　諾　　書"]
["LETTER OF CONSENT"]
[]
[null,null,null,null,null,null,null,null,null,null,null,null,null,null,null,null,null,null,null,null,null,null,null,null,null,null,"年",null,null,"月",null,null,"日"]
[null,null,null,null,null,null,null,null,null,null,null,null,null,null,null,null,null,null,null,null,null,null,null,null,null,"year",null,null,"month",null,null,"day"]
[]
[]
[]
[]
["岐阜大学大学院連合農学研究科長　殿"]
["To the Dean of the United Graduate School of Agricultural Science, Gifu University"]
[]
[null,null,null,null,null,null,null,null,null,null,null,null,null,null,null,null,null,"共著者氏名"]
[null,null,null,null,null,null,null,null,null,null,null,null,null,null,null,null,null,"Co-Author's Name",null,null,null,null,null,null,null,null,null,null,null,null,null,null,"Signature"]
[]
[null,null,null,null,null,null,null,null,null,null,null,null,null,null,null,null,null,"所属・職名"]
[null,null,null,null,null,null,null,null,null,null,null,null,null,null,null,null,null,"Affiliation and Position"]
[]
["論文題目"]
["Title of Paper"]
[]
[null,null,null,null,null,""]
[]
["著者名",null,null,null,null,{"$f":"IF('論文情報(Papers)'!C39=\"\",\"\",'論文情報(Papers)'!C39)","v":""}]
["Author(s) name"]
[]
["学術雑誌名（学会誌）",null,null,null,null,null,null,null,null,{"$f":"IF('論文情報(Papers)'!C41=\"\",\"\",'論文情報(Papers)'!C41)","v":""},null,null,null,null,null,null,null,null,null,null,null,null,null,null,null,null,null,null,null,null,null,{"$f":"IF($AF124=\"published\",\"に発表\", IF($AF124=\"in press\",\"に印刷中\", IF($AF124=\"submitted\",\"に投稿中\",\"\")))","v":""}]
["Name of Journal",null,null,null,null,null,null,null,null,null,null,null,null,null,null,null,null,null,null,null,null,null,null,null,null,null,null,null,null,null,null,{"$f":"IF('論文情報(Papers)'!V41=\"published/掲載済\", \"published\",IF('論文情報(Papers)'!V41=\"in press/印刷中\", \"in press\",IF('論文情報(Papers)'!V41=\"submitted/投稿中\", \"submitted\",\"－\")))","v":"－"}]
["（巻･号･頁）(Vol., No., Page)",null,null,null,null,null,null,null,null,null,null,null,null,null,null,null,null,null,null,"（",{"$f":"IF('論文情報(Papers)'!D45=\"\",\"\",'論文情報(Papers)'!D45)","v":""},null,null,null,null,null,null,null,null,null,"）"]
[]
["発行年月",null,null,null,null,null,null,null,null,null,null,null,{"$f":"IF('論文情報(Papers)'!U45=\"\",\"\",'論文情報(Papers)'!U45)","v":""},null,null,"年",{"$f":"IF('論文情報(Papers)'!Y45=\"\",\"\",'論文情報(Papers)'!Y45)","v":""},null,null,"月"]
["Date published",null,null,null,null,null,null,null,null,null,null,null,null,null,"year",null,null,null,"month"]
[]
["上記論文を",null,null,null,null,{"$f":"IF(COUNTBLANK('基本情報(Data)'!$G$8)=0,'基本情報(Data)'!$G$8,IF(COUNTBLANK('基本情報(Data)'!$G$6)=0,'基本情報(Data)'!$G$6,\"\"))","v":""},null,null,null,null,null,null,null,null,null,null,"氏が，岐阜大学大学院連合農学研究科へ博士（農学）の"]
["学位申請論文として提出することを承諾します。"]
["　なお，当該論文は，学位論文の基礎となる学術論文として過去において使用せず，また，将来に"]
["おいても使用しません。"]
["　I hereby give my consent for Mr./Ms. ",null,null,null,null,null,null,null,null,null,null,null,null,null,null,{"$f":"IF('基本情報(Data)'!$G$6=\"\",\"\",'基本情報(Data)'!$G$6)","v":""},null,null,null,null,null,null,null,null,null,null,null,null,null," to submit the"]
["above-mentioned paper in support of his/her doctoral application (in agriculture) at The United "]
["Graduate School of Agricultural Science, Gifu University. "]
["　This paper has not been used in the past as an academic paper that forms the basis of "]
["dissertation, nor will it be so used in the future."]
["　投稿中，印刷中，発表と進んでもこの書類に効力を持ちます。"]
["　This document is valid even if it is being submitted, in press, or published."]
[]
["別紙様式第5号（第４条，第６条関係）　Form No.5"]
[]
["承　　諾　　書"]
["LETTER OF CONSENT"]
[]
[null,null,null,null,null,null,null,null,null,null,null,null,null,null,null,null,null,null,null,null,null,null,null,null,null,null,"年",null,null,"月",null,null,"日"]
[null,null,null,null,null,null,null,null,null,null,null,null,null,null,null,null,null,null,null,null,null,null,null,null,null,"year",null,null,"month",null,null,"day"]
[]
[]
[]
[]
["岐阜大学大学院連合農学研究科長　殿"]
["To the Dean of the United Graduate School of Agricultural Science, Gifu University"]
[]
[null,null,null,null,null,null,null,null,null,null,null,null,null,null,null,null,null,"共著者氏名"]
[null,null,null,null,null,null,null,null,null,null,null,null,null,null,null,null,null,"Co-Author's Name",null,null,null,null,null,null,null,null,null,null,null,null,null,null,"Signature"]
[]
[null,null,null,null,null,null,null,null,null,null,null,null,null,null,null,null,null,"所属・職名"]
[null,null,null,null,null,null,null,null,null,null,null,null,null,null,null,null,null,"Affiliation and Position"]
[]
["論文題目"]
["Title of Paper"]
[]
[null,null,null,null,null,""]
[]
["著者名",null,null,null,null,{"$f":"IF('論文情報(Papers)'!C52=\"\",\"\",'論文情報(Papers)'!C52)","v":""}]
["Author(s) name"]
[]
["学術雑誌名（学会誌）",null,null,null,null,null,null,null,null,{"$f":"IF('論文情報(Papers)'!C54=\"\",\"\",'論文情報(Papers)'!C54)","v":""},null,null,null,null,null,null,null,null,null,null,null,null,null,null,null,null,null,null,null,null,null,{"$f":"IF($AE171=\"published\",\"に発表\", IF($AE171=\"in press\",\"に印刷中\", IF($AE171=\"submitted\",\"に投稿中\",\"\")))","v":""}]
["Name of Journal",null,null,null,null,null,null,null,null,null,null,null,null,null,null,null,null,null,null,null,null,null,null,null,null,null,null,null,null,null,{"$f":"IF('論文情報(Papers)'!V54=\"published/掲載済\", \"published\",IF('論文情報(Papers)'!V54=\"in press/印刷中\", \"in press\",IF('論文情報(Papers)'!V54=\"submitted/投稿中\", \"submitted\",\"－\")))","v":"－"}]
["（巻･号･頁）(Vol., No., Page)",null,null,null,null,null,null,null,null,null,null,null,null,null,null,null,null,null,null,"（",{"$f":"IF('論文情報(Papers)'!D58=\"\",\"\",'論文情報(Papers)'!D58)","v":""},null,null,null,null,null,null,null,null,null,"）"]
[]
["発行年月",null,null,null,null,null,null,null,null,null,null,null,{"$f":"IF('論文情報(Papers)'!U58=\"\",\"\",'論文情報(Papers)'!U58)","v":""},null,null,"年",{"$f":"IF('論文情報(Papers)'!Y58=\"\",\"\",'論文情報(Papers)'!Y58)","v":""},null,null,"月"]
["Date published",null,null,null,null,null,null,null,null,null,null,null,null,null,"year",null,null,null,"month"]
[]
["上記論文を",null,null,null,null,{"$f":"IF(COUNTBLANK('基本情報(Data)'!$G$8)=0,'基本情報(Data)'!$G$8,IF(COUNTBLANK('基本情報(Data)'!$G$6)=0,'基本情報(Data)'!$G$6,\"\"))","v":""},null,null,null,null,null,null,null,null,null,null,"氏が，岐阜大学大学院連合農学研究科へ博士（農学）の"]
["学位申請論文として提出することを承諾します。"]
["　なお，当該論文は，学位論文の基礎となる学術論文として過去において使用せず，また，将"]
["来においても使用しません。"]
["　I hereby give my consent for Mr./Ms. ",null,null,null,null,null,null,null,null,null,null,null,null,null,null,{"$f":"IF('基本情報(Data)'!$G$6=\"\",\"\",'基本情報(Data)'!$G$6)","v":""},null,null,null,null,null,null,null,null,null,null,null,null,null," to submit the"]
["above-mentioned paper in support of his/her doctoral application (in agriculture) at The United "]
["Graduate School of Agricultural Science, Gifu University. "]
["　This paper has not been used in the past as an academic paper that forms the basis of "]
["dissertation, nor will it be so used in the future."]
["　投稿中，印刷中，発表と進んでもこの書類に効力を持ちます。"]
["　This document is valid even if it is being submitted, in press, or published."]
[]
["別紙様式第5号（第４条，第６条関係）　Form No.5"]
[]
["承　　諾　　書"]
["LETTER OF CONSENT"]
[]
[null,null,null,null,null,null,null,null,null,null,null,null,null,null,null,null,null,null,null,null,null,null,null,null,null,null,"年",null,null,"月",null,null,"日"]
[null,null,null,null,null,null,null,null,null,null,null,null,null,null,null,null,null,null,null,null,null,null,null,null,null,"year",null,null,"month",null,null,"day"]
[]
[]
[]
[]
["岐阜大学大学院連合農学研究科長　殿"]
["To the Dean of the United Graduate School of Agricultural Science, Gifu University"]
[]
[null,null,null,null,null,null,null,null,null,null,null,null,null,null,null,null,null,"共著者氏名"]
[null,null,null,null,null,null,null,null,null,null,null,null,null,null,null,null,null,"Co-Author's Name",null,null,null,null,null,null,null,null,null,null,null,null,null,null,"Signature"]
[]
[null,null,null,null,null,null,null,null,null,null,null,null,null,null,null,null,null,"所属・職名"]
[null,null,null,null,null,null,null,null,null,null,null,null,null,null,null,null,null,"Affiliation and Position"]
[]
["論文題目"]
["Title of Paper"]
[]
[]
[]
["著者名",null,null,null,null,{"$f":"IF('論文情報(Papers)'!C65=\"\",\"\",'論文情報(Papers)'!C65)","v":""}]
["Author(s) name"]
[]
["学術雑誌名（学会誌）",null,null,null,null,null,null,null,null,{"$f":"IF('論文情報(Papers)'!C67=\"\",\"\",'論文情報(Papers)'!C67)","v":""},null,null,null,null,null,null,null,null,null,null,null,null,null,null,null,null,null,null,null,null,null,{"$f":"IF($AE218=\"published\",\"に発表\", IF($AE218=\"in press\",\"に印刷中\", IF($AE218=\"submitted\",\"に投稿中\",\"\")))","v":""}]
["Name of Journal",null,null,null,null,null,null,null,null,null,null,null,null,null,null,null,null,null,null,null,null,null,null,null,null,null,null,null,null,null,{"$f":"IF('論文情報(Papers)'!V67=\"published/掲載済\", \"published\",IF('論文情報(Papers)'!V67=\"in press/印刷中\", \"in press\",IF('論文情報(Papers)'!V67=\"submitted/投稿中\", \"submitted\",\"－\")))","v":"－"}]
["（巻･号･頁）(Vol., No., Page)",null,null,null,null,null,null,null,null,null,null,null,null,null,null,null,null,null,null,"（",{"$f":"IF('論文情報(Papers)'!D71=\"\",\"\",'論文情報(Papers)'!D71)","v":""},null,null,null,null,null,null,null,null,null,"）"]
[]
["発行年月",null,null,null,null,null,null,null,null,null,null,null,{"$f":"IF('論文情報(Papers)'!U71=\"\",\"\",'論文情報(Papers)'!U71)","v":""},null,null,"年",{"$f":"IF('論文情報(Papers)'!Y71=\"\",\"\",'論文情報(Papers)'!Y71)","v":""},null,null,"月"]
["Date published",null,null,null,null,null,null,null,null,null,null,null,null,null,"year",null,null,null,"month"]
[]
["上記論文を",null,null,null,null,{"$f":"IF(COUNTBLANK('基本情報(Data)'!$G$8)=0,'基本情報(Data)'!$G$8,IF(COUNTBLANK('基本情報(Data)'!$G$6)=0,'基本情報(Data)'!$G$6,\"\"))","v":""},null,null,null,null,null,null,null,null,null,null,"氏が，岐阜大学大学院連合農学研究科へ博士（農学）の"]
["学位申請論文として提出することを承諾します。"]
["　なお，当該論文は，学位論文の基礎となる学術論文として過去において使用せず，また，将"]
["来においても使用しません。"]
["　I hereby give my consent for Mr./Ms. ",null,null,null,null,null,null,null,null,null,null,null,null,null,null,{"$f":"IF('基本情報(Data)'!$G$6=\"\",\"\",'基本情報(Data)'!$G$6)","v":""},null,null,null,null,null,null,null,null,null,null,null,null,null," to submit the"]
["above-mentioned paper in support of his/her doctoral application (in agriculture) at The United "]
["Graduate School of Agricultural Science, Gifu University. "]
["　This paper has not been used in the past as an academic paper that forms the basis of "]
["dissertation, nor will it be so used in the future."]
["　投稿中，印刷中，発表と進んでもこの書類に効力を持ちます。"]
["　This document is valid even if it is being submitted, in press, or published."]
[]
["別紙様式第5号（第４条，第６条関係）　Form No.5"]
[]
["承　　諾　　書"]
["LETTER OF CONSENT"]
[]
[null,null,null,null,null,null,null,null,null,null,null,null,null,null,null,null,null,null,null,null,null,null,null,null,null,null,"年",null,null,"月",null,null,"日"]
[null,null,null,null,null,null,null,null,null,null,null,null,null,null,null,null,null,null,null,null,null,null,null,null,null,"year",null,null,"month",null,null,"day"]
[]
[]
[]
[]
["岐阜大学大学院連合農学研究科長　殿"]
["To the Dean of the United Graduate School of Agricultural Science, Gifu University"]
[]
[null,null,null,null,null,null,null,null,null,null,null,null,null,null,null,null,null,"共著者氏名"]
[null,null,null,null,null,null,null,null,null,null,null,null,null,null,null,null,null,"Co-Author's Name",null,null,null,null,null,null,null,null,null,null,null,null,null,null,"Signature"]
[]
[null,null,null,null,null,null,null,null,null,null,null,null,null,null,null,null,null,"所属・職名"]
[null,null,null,null,null,null,null,null,null,null,null,null,null,null,null,null,null,"Affiliation and Position"]
[]
["論文題目"]
["Title of Paper"]
[]
[null,null,null,null,null,{"$f":"IF('論文情報(Papers)'!C76<>\"\",'論文情報(Papers)'!C76,\"\")","v":""}]
[]
["著者名",null,null,null,null,{"$f":"IF('論文情報(Papers)'!C78=\"\",\"\",'論文情報(Papers)'!C78)","v":""}]
["Author(s) name"]
[]
["学術雑誌名（学会誌）",null,null,null,null,null,null,null,null,{"$f":"IF('論文情報(Papers)'!C80=\"\",\"\",'論文情報(Papers)'!C80)","v":""},null,null,null,null,null,null,null,null,null,null,null,null,null,null,null,null,null,null,null,null,null,{"$f":"IF($AE265=\"published\",\"に発表\", IF($AE265=\"in press\",\"に印刷中\", IF($AE265=\"submitted\",\"に投稿中\",\"\")))","v":""}]
["Name of Journal",null,null,null,null,null,null,null,null,null,null,null,null,null,null,null,null,null,null,null,null,null,null,null,null,null,null,null,null,null,{"$f":"IF('論文情報(Papers)'!V80=\"published/掲載済\", \"published\",IF('論文情報(Papers)'!V80=\"in press/印刷中\", \"in press\",IF('論文情報(Papers)'!V80=\"submitted/投稿中\", \"submitted\",\"－\")))","v":"－"}]
["（巻･号･頁）(Vol., No., Page)",null,null,null,null,null,null,null,null,null,null,null,null,null,null,null,null,null,null,"（",{"$f":"IF('論文情報(Papers)'!D84=\"\",\"\",'論文情報(Papers)'!D84)","v":""},null,null,null,null,null,null,null,null,null,"）"]
[]
["発行年月",null,null,null,null,null,null,null,null,null,null,null,{"$f":"IF('論文情報(Papers)'!U84=\"\",\"\",'論文情報(Papers)'!U84)","v":""},null,null,"年",{"$f":"IF('論文情報(Papers)'!Y84=\"\",\"\",'論文情報(Papers)'!Y84)","v":""},null,null,"月"]
["Date published",null,null,null,null,null,null,null,null,null,null,null,null,null,"year",null,null,null,"month"]
[]
["上記論文を",null,null,null,null,{"$f":"IF(COUNTBLANK('基本情報(Data)'!$G$8)=0,'基本情報(Data)'!$G$8,IF(COUNTBLANK('基本情報(Data)'!$G$6)=0,'基本情報(Data)'!$G$6,\"\"))","v":""},null,null,null,null,null,null,null,null,null,null,"氏が，岐阜大学大学院連合農学研究科へ博士（農学）の"]
["学位申請論文として提出することを承諾します。"]
["　なお，当該論文は，学位論文の基礎となる学術論文として過去において使用せず，また，将"]
["来においても使用しません。"]
["　I hereby give my consent for Mr./Ms. ",null,null,null,null,null,null,null,null,null,null,null,null,null,null,{"$f":"IF('基本情報(Data)'!$G$6=\"\",\"\",'基本情報(Data)'!$G$6)","v":""},null,null,null,null,null,null,null,null,null,null,null,null,null," to submit the"]
["above-mentioned paper in support of his/her doctoral application (in agriculture) at The United "]
["Graduate School of Agricultural Science, Gifu University. "]
["　This paper has not been used in the past as an academic paper that forms the basis of "]
["dissertation, nor will it be so used in the future."]
["　投稿中，印刷中，発表と進んでもこの書類に効力を持ちます。"]
["　This document is valid even if it is being submitted, in press, or published."]

{"sheet":"学位論文題目届 (Title of Dissertation)","index":9,"n_rows":37,"n_cols":22,"rows_kept":37,"cut":false,"hidden":false,"merged":[[28,2,28,9],[14,0,14,24],[35,0,36,2],[35,3,35,24],[36,3,36,24],[29,2,30,9],[31,2,31,9],[32,2,33,9],[23,2,27,9],[21,3,21,24],[18,0,18,24],[2,0,2,24],[3,0,3,24],[5,11,5,13],[6,10,7,23],[6,1,6,9],[7,1,7,9],[8,21,8,23],[12,21,12,23],[23,10,27,16],[28,10,30,16],[31,10,33,16],[23,17,27,23],[28,17,30,23],[31,17,33,23],[9,11,9,13],[15,0,15,24],[20,0,21,2],[20,3,20,24],[10,1,10,9],[17,0,17,24],[10,12,11,23],[11,1,11,11]]}
[]
[]
["学 位 論 文 題 目 届"]
["Notification of Title of Dissertation"]
[]
[null,null,null,null,null,null,null,null,null,null,null,"（自署）"]
[null,"学位申請予定学生氏名"]
[null,"Name"]
[null,null,null,null,null,null,null,null,null,null,null,null,null,null,null,null,null,null,null,null,null,"Signature"]
[null,null,null,null,null,null,null,null,null,null,null,"（自署）"]
[null,"主指導教員氏名"]
[null,"Name of Primary Academic Supervisor "]
[null,null,null,null,null,null,null,null,null,null,null,null,null,null,null,null,null,null,null,null,null,"Signature"]
[]
["岐阜大学大学院連合農学研究科"]
["The United Graduate School of Agricultural Science, Gifu University"]
[]
["学　位　論　文　題　目　Title of Dissertation"]
[]
[]
["注）１",null,null,"期日（※1）までに連合農学係へ提出願います。"]
[null,null,null,"Please submit the form by the deadline specified below(※1) to UGSAS Office."]
[]
[null,null,"                     学位取得時期\n                          Time of degree acquition\n\n提出書類\nDocuments to be submitted",null,null,null,null,null,null,null,"9月期\nSeptember",null,null,null,null,null,null,"3月期\nMarch"]
[]
[]
[]
[]
[null,null,"学位論文題目届",null,null,null,null,null,null,null,"5月27日（月）\n27-May(Mon)",null,null,null,null,null,null,"10月28日（月）\n28-Oct(Mon)"]
[null,null,"Notification of Title of\nDissertation"]
[]
[null,null,"研究題目変更願",null,null,null,null,null,null,null,"5月27日（月）\n27-May(Mon)",null,null,null,null,null,null,"10月28日（月）\n28-Oct(Mon)"]
[null,null,"Request for Change of\nResearch Title"]
[]
[]
["　　2",null,null,"英文論文の場合，単語の頭文字を大文字にしてください。"]
[null,null,null,"If the dissertation is in English, capitalize the first letters of all main words in the title.\n（例 ex. ）「Studies　on　Biochemical　・・・・」"]

{"sheet":"研究題目変更願(request for change)","index":10,"n_rows":40,"n_cols":30,"rows_kept":40,"cut":false,"hidden":false,"merged":[[39,2,39,30],[36,0,36,4],[34,5,34,30],[16,17,16,30],[18,17,18,30],[32,5,32,30],[32,0,32,4],[34,0,34,4],[38,2,38,30],[30,0,30,30],[36,5,36,12],[19,11,19,16],[1,20,1,22],[27,0,27,30],[28,0,28,30],[1,24,1,25],[1,27,1,28],[2,22,2,24],[2,25,2,27],[2,28,2,30],[40,2,40,30],[6,0,6,30],[22,28,22,30],[25,28,25,30],[9,0,9,26],[10,0,10,26],[12,11,12,14],[14,11,14,14],[16,11,16,14],[18,11,18,14],[12,17,12,24],[21,11,21,14],[21,16,21,29],[24,16,24,29],[7,0,7,30],[14,17,14,30]]}
[]
[null,null,null,null,null,null,null,null,null,null,null,null,null,null,null,null,null,null,null,null,null,null,null,"年",null,null,"月",null,null,"日"]
[null,null,null,null,null,null,null,null,null,null,null,null,null,null,null,null,null,null,null,null,null,null,"year",null,null,"month",null,null,"day"]
[]
[]
[]
["研究題目変更願"]
["Request for Change of Research Title"]
[]
["岐阜大学大学院連合農学研究科長　殿"]
["To the Dean of the United Graduate School of Agricultural Science, Gifu University"]
[]
[null,null,null,null,null,null,null,null,null,null,null,"入学年度",null,null,null,null,null,{"$f":"IF('基本情報(Data)'!E4=\"\",\"\",YEAR('基本情報(Data)'!E4))","v":""},null,null,null,null,null,null,null,"年度"]
[null,null,null,null,null,null,null,null,null,null,null,"Matriculation Year"]
[null,null,null,null,null,null,null,null,null,null,null,"専攻",null,null,null,null,null,{"$f":"IF('基本情報(Data)'!F4=\"日本語 Japanese\", IF('基本情報(Data)'!E14=\"\",\"\",VLOOKUP('基本情報(Data)'!E14,'基本情報(Data)'!C29:E32,2,0)),IF('基本情報(Data)'!E14=\"\",\"\",VLOOKUP('基本情報(Data)'!E14,'基本情報(Data)'!C29:E32,3,0)))","v":""}]
[null,null,null,null,null,null,null,null,null,null,null,"Course"]
[null,null,null,null,null,null,null,null,null,null,null,"連合講座",null,null,null,null,null,{"$f":"IF('基本情報(Data)'!F4=\"日本語 Japanese\", IF('基本情報(Data)'!F14=\"\",\"\",VLOOKUP('基本情報(Data)'!F14,'基本情報(Data)'!C34:E40,2,0)),IF('基本情報(Data)'!F14=\"\",\"\",VLOOKUP('基本情報(Data)'!F14,'基本情報(Data)'!C34:E40,3,0)))","v":""}]
[null,null,null,null,null,null,null,null,null,null,null,"Major Chair"]
[null,null,null,null,null,null,null,null,null,null,null,"配置大学",null,null,null,null,null,{"$f":"IF('基本情報(Data)'!F4=\"日本語 Japanese\", IF('基本情報(Data)'!G14=\"\",\"\",VLOOKUP('基本情報(Data)'!G14,'基本情報(Data)'!F40:H41,2,0)),IF('基本情報(Data)'!G14=\"\",\"\",VLOOKUP('基本情報(Data)'!G14,'基本情報(Data)'!F40:H41,3,0)))","v":""}]
[null,null,null,null,null,null,null,null,null,null,null,"Affiliated University"]
[null,null,null,null,null,null,null,null,null,null,null,"（自署）"]
[null,null,null,null,null,null,null,null,null,null,null,"氏名"]
[null,null,null,null,null,null,null,null,null,null,null,"Name",null,null,null,null,null,null,null,null,null,null,null,null,null,null,null,null,"Signature"]
[null,null,null,null,null,null,null,null,null,null,null,null,null,null,null,null,"（自署）"]
[null,null,null,null,null,null,null,null,null,null,null,"主指導教員"]
[null,null,null,null,null,null,null,null,null,null,null,"Name of Primary Academic Supervisor",null,null,null,null,null,null,null,null,null,null,null,null,null,null,null,null,"Signature"]
[]
["下記のとおり研究題目を変更したいので，許可願います。"]
["Request for permission to make the following change in the title of my research."]
[]
["記"]
[]
["旧研究課題\nFormer Research Title",null,null,null,null,"Obsolete title"]
[]
["新研究課題\nNew Research Title"]
[]
["変更理由",null,null,null,null,"（具体的に）"]
["Reason for change (be specific)"]
[null,null,"現在の研究内容に合わせたタイトルに修正した．"]
[null,null,"The title was revised to match the current research."]

{"sheet":"機関リポジトリ登録申請書(Repository)","index":11,"n_rows":71,"n_cols":33,"rows_kept":71,"cut":false,"hidden":false,"merged":[[15,0,15,6],[16,0,16,6],[12,2,12,31],[14,0,14,6],[14,26,14,29],[1,0,1,34],[2,0,2,34],[4,22,4,25],[4,27,4,28],[4,30,4,31],[5,24,5,32],[8,0,8,15],[10,2,10,31],[7,0,7,15],[14,30,14,34],[25,7,25,34],[22,0,22,6],[25,0,25,6],[43,10,44,34],[48,18,48,19],[48,21,48,22],[48,24,48,25],[24,25,24,30],[26,9,28,34],[29,13,30,34],[31,13,31,34],[32,7,32,34],[29,9,30,12],[41,10,41,34],[30,0,30,6],[29,0,29,6],[21,32,22,33],[20,0,20,6],[20,25,20,30],[23,0,23,6],[15,7,15,13],[24,9,24,15],[24,17,24,23],[21,0,21,6],[17,0,18,6],[15,14,15,22],[21,9,22,15],[21,17,22,23],[21,25,22,30],[20,9,20,15],[24,0,24,6],[20,17,20,23],[20,7,24,8],[15,26,15,29],[15,30,18,34],[16,26,18,29],[17,7,17,11],[16,7,16,22],[17,12,17,24],[18,7,18,22],[15,23,15,24],[70,9,70,10],[68,23,68,27],[68,9,68,10],[34,0,34,6],[31,0,31,6],[33,0,33,6],[35,0,35,6],[68,11,70,21],[66,0,72,6],[61,8,61,34],[70,23,70,28],[68,29,70,34],[60,7,60,34],[63,8,63,34],[62,7,62,34],[36,7,36,34],[36,0,58,6],[51,10,51,34],[52,10,52,34],[53,10,53,34],[54,10,54,34],[48,10,48,15],[40,7,40,34],[45,7,45,34],[60,0,65,6],[64,7,65,34],[33,8,33,33],[34,8,34,33],[26,7,31,8],[33,7,35,7],[31,9,31,12],[35,8,35,34],[37,10,37,34],[55,10,57,34],[59,0,59,34],[38,10,38,34],[39,10,39,34],[50,7,50,34],[47,10,47,34],[49,11,49,13],[49,21,49,24],[49,25,49,31],[49,14,49,20],[42,10,42,34],[46,10,46,34],[26,0,26,6],[27,0,27,6],[28,0,28,6]]}
[]
["機関リポジトリ登録申請書"]
["Institutional Repository Registration Application Form"]
[]
[null,null,null,null,null,null,null,null,null,null,null,null,null,null,null,null,null,null,null,null,null,null,null,null,null,null,"年",null,null,"月",null,null,"日"]
[null,null,null,null,null,null,null,null,null,null,null,null,null,null,null,null,null,null,null,null,null,"Date:",null,null,"(yyyy/mm/dd)"]
[]
["岐阜大学附属図書館長　　殿"]
["To the Director of Gifu University Library"]
[]
[null,"私が執筆した博士学位論文について、下記のとおり電子データで提出します。","私が執筆した博士学位論文について、下記のとおり電子データで提出します。"]
[]
[null,null,"I submit an electronic copy of my doctoral dissertation to the Gifu University Library."]
[]
[]
["所属",null,null,null,null,null,null,"連合農学研究科",null,null,null,null,null,null,{"$f":"IF('基本情報(Data)'!E14=\"\",\"\",VLOOKUP('基本情報(Data)'!E14,'基本情報(Data)'!C29:E32,2,0))","v":""},null,null,null,null,null,null,null,null,"専攻",null,null,"学籍番号",null,null,null,{"$f":"IF('基本情報(Data)'!D14<>\"\",'基本情報(Data)'!D14,\"\")","v":""}]
["Faculty",null,null,null,null,null,null,"The United Graduate School of Agricultural Science",null,null,null,null,null,null,null,null,null,null,null,null,null,null,null,null,null,null,"School Registration Number"]
["Course",null,null,null,null,null,null,"Course:",null,null,null,null,{"$f":"IF('基本情報(Data)'!E14=\"\",\"\",VLOOKUP('基本情報(Data)'!E14,'基本情報(Data)'!C29:E32,3,0))","v":""}]
[]
[]
["（フリガナ）",null,null,null,null,null,null,null,null,{"$f":"IF('基本情報(Data)'!D10=\"\",\"\",'基本情報(Data)'!D10)","v":""},null,null,null,null,null,null,null,{"$f":"IF('基本情報(Data)'!E10<>\"\",'基本情報(Data)'!E10,\"\")","v":""},null,null,null,null,null,null,null,{"$f":"IF('基本情報(Data)'!F10=\"\",\"\",'基本情報(Data)'!F10)","v":""}]
["氏名",null,null,null,null,null,null,null,null,{"$f":"IF('基本情報(Data)'!D8<>\"\",'基本情報(Data)'!D8, IF('基本情報(Data)'!D6<>\"\",'基本情報(Data)'!D6,\"\"))","v":""},null,null,null,null,null,null,null,{"$f":"IF('基本情報(Data)'!E8<>\"\",'基本情報(Data)'!E8,IF('基本情報(Data)'!E6<>\"\",IF('基本情報(Data)'!G8<>\"\",\"\",'基本情報(Data)'!E6),\"\"))","v":""},null,null,null,null,null,null,null,{"$f":"IF('基本情報(Data)'!F8<>\"\",'基本情報(Data)'!F8,IF('基本情報(Data)'!F6<>\"\",'基本情報(Data)'!F6,\"\"))","v":""}]
["(Katakana)"]
[]
["Name",null,null,null,null,null,null,null,null,"姓 Family Name",null,null,null,null,null,null,null,"ミドル Middle Name",null,null,null,null,null,null,null,"名 Given Name",null,null,null,null,null,null,"印 seal"]
[]
["修了後の連絡先",null,null,null,null,null,null,null,null,{"$f":"IF('基本情報(Data)'!F18<>\"\",'基本情報(Data)'!F18,\"\")","v":""}]
["（または帰省先）"]
["（郵便番号から）"]
["Contact Address after",null,null,null,null,null,null,null,null,"TEL:",null,null,null,{"$f":"IF('基本情報(Data)'!E18<>\"\",'基本情報(Data)'!E18,\"\")","v":""}]
["Completion/"]
["Returning Home",null,null,null,null,null,null,null,null,"E-mail:",null,null,null,{"$f":"IF('基本情報(Data)'!D18<>\"\",'基本情報(Data)'!D18,\"\")","v":""}]
[]
["論文題目\n（和文の場合は英訳，英語の場合は和訳を，（）で併記すること）"]
["Dissertation Title(If in English (Japanese), write Japanese (English)  translation in parentheses)"]
[]
["公表\nPublication"]
[null,null,null,null,null,null,null,null,"□",null,"岐阜大学機関リポジトリで全文公表します"]
[null,null,null,null,null,null,null,null,null,null,"Publish the above dissertation (full text) on the Gifu University Institutional  "]
[null,null,null,null,null,null,null,null,null,null,"Repository"]
[]
[null,null,null,null,null,null,null,null,"□",null,"岐阜大学機関リポジトリでの全文公表の延期を希望します。ただし、全文"]
[null,null,null,null,null,null,null,null,null,null,"公表可能日までは、博士論文（要約版）を公表します。"]
[null,null,null,null,null,null,null,null,null,null,"Unable to publish the full text of my dissertation on the Gifu University Institutional Repository, and request permission to publish a summary of my dissertation instead."]
[]
[]
[null,null,null,null,null,null,null,null,null,"□","＜公表可能日＞Possible date of full publication"]
[null,null,null,null,null,null,null,null,null,null,"本日より１年以内の場合（本日より１年以内の月日をご記入ください）"]
[null,null,null,null,null,null,null,null,null,null,"※ 公表可能日 ：",null,null,null,null,null," 令和",null,null,null,"年",null,null,"月",null,null,"日以降"]
[null,null,null,null,null,null,null,null,null,null,null,"Date：",null,null,null,null,null,null,null,null,null,"(yyyy/mm/dd)",null,null,null,"(No greater than one year)"]
[]
[null,null,null,null,null,null,null,null,null,"□","＜未定の場合＞ If the date of full publication is undetermined:"]
[null,null,null,null,null,null,null,null,null,null,"本日より１年以内に「機関リポジトリ登録申請書」を提出します。提出し"]
[null,null,null,null,null,null,null,null,null,null,"ない場合は、その後、博士論文全文をインターネット公表することに同意"]
[null,null,null,null,null,null,null,null,null,null,"します。"]
[null,null,null,null,null,null,null,null,null,null,"I agree to contact the UGSAS once a year to inform the current status of the publication by submitting this form. If I fail to apply for the yearly extension, I understand that Gifu University will automatically upload my dissertation."]
[]
[]
[]
["裏面ありContinued on Reverse Side"]
["延期を希望\nする理由(詳細)\nReason for requesting delay\n(Explain in detail)"]
[null,null,null,null,null,null,null,null,"延期を希望する場合は、記入してください。"]
[]
[null,null,null,null,null,null,null,null,"State the reason for requesting delay."]
[]
[]
["指導教員確認\nSupervisor's\nConfirmation"]
[]
[null,null,null,null,null,null,null,null,null,"氏名",null,{"$f":"IF('基本情報(Data)'!D20<>\"\",'基本情報(Data)'!D20,IF('基本情報(Data)'!E20<>\"\",'基本情報(Data)'!E20,\"\"))","v":""},null,null,null,null,null,null,null,null,null,null,null,"署名又は押印"]
[]
[null,null,null,null,null,null,null,null,null,"Name",null,null,null,null,null,null,null,null,null,null,null,null,null,"Signature/Seal"]

{"sheet":"英文氏名国名届(Name and nationality)","index":12,"n_rows":27,"n_cols":8,"rows_kept":27,"cut":false,"hidden":false,"merged":[[22,2,22,32],[24,2,24,32],[5,0,5,32],[22,0,22,1],[26,2,28,32],[4,0,4,32],[15,0,15,4],[9,0,9,4],[9,7,10,32],[15,7,16,32]]}
[]
[]
[]
[]
["英文の氏名及び国名届（外国人のみ）"]
["English spelling of applicant’s name and nationality (foreign applicants only)"]
[]
[]
[]
["氏名",null,null,null,null,null,null,{"$f":"IF(COUNTBLANK('基本情報(Data)'!G6)=0, '基本情報(Data)'!G6, \"\")","v":""}]
["Applicant's Name"]
[]
[]
[]
[]
["国名",null,null,null,null,null,null,{"$f":"IF('基本情報(Data)'!F12=\"\",\"\",'基本情報(Data)'!F12)","v":""}]
["Nationality"]
[]
[]
[]
[]
[]
["注：",null,"学位記及び英文学位記証明書の発行の参考に資するため、"]
[]
[null,null,"省略しないで正確なものを記入すること。"]
[]
["Note: ",null,"This will be used when issuing your diploma and English degree certificate. Please fill in accurately and do not use abbreviations."]